Workbook

Sheet GESTION
A1: QID | B1: MEQ | C1: Instructions pour les impressions | F1: pdf | G1: xlms | H1: Data | I1: ReferenceVBA | J1: Copie | AA1: Special | AB1: Ascii | AC1: NoAudit | AD1: MRC | AE1: Lieu | AF1: Prénom | AG1: Nom
A2: QIDCDPQO | B2: 1 | C2: QUESTIONS | D2: $M$22:$V$89 | E2: Q | F2: OUI | G2: NON | H2: =P28 -> 20190524-NIL0-AucunLieuXXXXXXXXXXX | I2: 1 | J2: 0 | AA2: Apostrophe | AC2: =LEFT(SUBSTITUTE(J21,"'",$AB2),8) -> 0 | AD2: =LEFT(SUBSTITUTE(J23,"'",$AB2),16) -> AucuneMRC | AE2: =LEFT(SUBSTITUTE(J26,"'",$AB2),25) -> AucunLieu | AF2: =I17 -> Zenoma | AG2: =J17 -> Tesselata
A3: QIDCDPQF | B3: 1 | H3: =P29 -> 20190524-0-AucuneMRC | I3: 1 | J3: 0 | AA3: á | AB3: a | AC3: =SUBSTITUTE(AC2,$AA3,$AB3) -> 0 | AD3: AucuneMRC | AE3: AucunLieu | AF3: Zenoma | AG3: Tesselata
A4: IdAudit | B4: 1 | H4: =LEFT(UPPER(CONCATENATE(LEFT(AF89,4),LEFT(AG89,4),"XXXX")),8) -> ZENOTESS | I4: 13 | J4: 13 | AA4: Á | AB4: A | AC4: 0 | AD4: AucuneMRC | AE4: AucunLieu | AF4: Zenoma | AG4: Tesselata
A5: PrenomAudit | B5: 1 | H5: =I17 -> Zenoma | I5: =ROW(I14) -> 14 | J5: =ROW(J14) -> 14 | AA5: â | AB5: a | AC5: 0 | AD5: AucuneMRC | AE5: AucunLieu | AF5: Zenoma | AG5: Tesselata
A6: NomAudit | B6: 1 | H6: =J17 -> Tesselata | I6: 56 | J6: 56 | AA6: Â | AB6: A | AC6: 0 | AD6: AucuneMRC | AE6: AucunLieu | AF6: Zenoma | AG6: Tesselata
A7: CourrielAudit | B7: 1 | H7: =IF(P18="","Audit@pascourriel",P18) -> zenona@gmail.ca | I7: =ROW(I92) -> 92 | J7: =ROW(J92) -> 92 | AA7: à | AB7: a | AC7: 0 | AD7: AucuneMRC | AE7: AucunLieu | AF7: Zenoma | AG7: Tesselata
A8: CourrielClient | B8: 1 | H8: =IF(K19=TRUE,P20,"Aucun") -> 0 | I8: 1 | J8: 1 | AA8: À | AB8: A | AC8: 0 | AD8: AucuneMRC | AE8: AucunLieu | AF8: Zenoma | AG8: Tesselata
A9: EnvoiAudit | B9: 1 | H9: =J19 -> TRUE | I9: $W:$AK | J9: $W:$AK | AA9: å | AB9: a | AC9: 0 | AD9: AucuneMRC | AE9: AucunLieu | AF9: Zenoma | AG9: Tesselata
A10: EnvoiClient | B10: 1 | H10: =K19 -> TRUE | I10: =CONCATENATE("$M$",I5,":$V$",I6) -> $M$14:$V$56 | J10: =CONCATENATE("$M$",J5,":$V$",J6) -> $M$14:$V$56 | AA10: Å | AB10: A | AC10: 0 | AD10: AucuneMRC | AE10: AucunLieu | AF10: Zenoma | AG10: Tesselata
A11: NmQuestAudit | B11: 1 | H11: =P21 -> 0 | I11: =I43 -> 0.4444444444 | J11: =J43 -> 9 | AA11: ã | AB11: a | AC11: 0 | AD11: AucuneMRC | AE11: AucunLieu | AF11: Zenoma | AG11: Tesselata
A12: CodeValida | B12: 1 | H12: =P22 -> 0 | I12: =IF(Q51-INT(Q51)=0,Q51,0) -> 0 | J12: =IF(R51=1,1,IF(R51=2,2,IF(R51>14,R51,0))) -> 0 | AA12: Ã | AB12: A | AC12: 0 | AD12: AucuneMRC | AE12: AucunLieu | AF12: Zenoma | AG12: Tesselata
A13: MRC | B13: 1 | H13: =J23 -> AucuneMRC | I13: M14:M15 | J13: M14:V16,M17:O23,M24:V50,M51:P51,M52:V90 | AA13: ä | AB13: a | AC13: 0 | AD13: AucuneMRC | AE13: AucunLieu | AF13: Zenoma | AG13: Tesselata
A14: GEST13 | B14: 1 | I14: =ROW(H45) -> 45 | J14: =ROW(I45) -> 45 | AA14: Ä | AB14: A | AC14: =SUBSTITUTE(AC13,$AA14,$AB14) -> 0 | AD14: =SUBSTITUTE(AD13,$AA14,$AB14) -> AucuneMRC | AE14: =SUBSTITUTE(AE13,$AA14,$AB14) -> AucunLieu | AF14: =SUBSTITUTE(AF13,$AA14,$AB14) -> Zenoma | AG14: =SUBSTITUTE(AG13,$AA14,$AB14) -> Tesselata
A15: GEST14 | B15: 21 | I15: 1 | J15: 1 | N15: =CONCATENATE("A) Section à compléter par l'auditeur (code ",H4,")",) -> A) Section à compléter par l'auditeur (code ZENOTESS) | AA15: æ | AB15: ae | AC15: 0 | AD15: AucuneMRC | AE15: AucunLieu | AF15: Zenoma | AG15: Tesselata
A16: GEST15 | B16: 14 | AA16: Æ | AB16: AE | AC16: 0 | AD16: AucuneMRC | AE16: AucunLieu | AF16: Zenoma | AG16: Tesselata
A17: GEST16 | B17: 50 | I17: =IF(P17="","Prénom",P17) -> Zenoma | J17: =IF(R17="","Nom",R17) -> Tesselata | N17: &1- Nom de l'auditeur | P17: Zenoma | R17: Tesselata | AA17: ç | AB17: c | AC17: 0 | AD17: AucuneMRC | AE17: AucunLieu | AF17: Zenoma | AG17: Tesselata
A18: GEST17 | B18: 48 | N18: &2- Adresse courriel de l'auditeur | P18: zenona@gmail.ca | AA18: Ç | AB18: C | AC18: 0 | AD18: AucuneMRC | AE18: AucunLieu | AF18: Zenoma | AG18: Tesselata
A19: GEST18 | B19: 49 | J19: TRUE | K19: TRUE | N19: &3- Le CDPQ enverra le rapport d'étalonnage à : | P19: Auditeur | R19: Transporteur | AA19: é | AB19: e | AC19: =SUBSTITUTE(AC18,$AA19,$AB19) -> 0 | AD19: AucuneMRC | AE19: AucunLieu | AF19: Zenoma | AG19: Tesselata
A20: GEST19 | B20: 48 | K20: =IF(P20="","Aucun",P20) -> Aucun | N20: &4- Adresse courriel du transporteur | AA20: É | AB20: E | AC20: 0 | AD20: AucuneMRC | AE20: AucunLieu | AF20: Zenoma | AG20: Tesselata
A21: GEST20 | B21: 48 | I21: =AC89 -> 0 | J21: =P21 -> 0 | N21: &5- No de dossier de l'auditeur* | AA21: ê | AB21: e | AC21: 0 | AD21: AucuneMRC | AE21: AucunLieu | AF21: Zenoma | AG21: Tesselata
A22: GEST21 | B22: 48 | G22: 1 | N22: &6- Code de validation (App. Cellulaire) | AA22: Ê | AB22: E | AC22: 0 | AD22: AucuneMRC | AE22: AucunLieu | AF22: Zenoma | AG22: Tesselata
A23: GEST22 | B23: 50 | G23: 1 | I23: =AD89 -> AucuneMRC | J23: =IF(R23="","AucuneMRC",R23) -> AucuneMRC | N23: &7- Région administrative et MRC | P23: Region Administrative | AA23: è | AB23: e | AC23: 0 | AD23: AucuneMRC | AE23: AucunLieu | AF23: Zenoma | AG23: Tesselata
A24: GEST23 | B24: 40 | N24: * Ce numéro permet de personaliser le dossier et il ne peut pas dépasser 8 caractères. | AA24: È | AB24: E | AC24: 0 | AD24: AucuneMRC | AE24: AucunLieu | AF24: Zenoma | AG24: Tesselata
A25: GEST24 | B25: 14 | AA25: ë | AB25: e | AC25: 0 | AD25: AucuneMRC | AE25: AucunLieu | AF25: Zenoma | AG25: Tesselata
A26: GEST25 | B26: 21 | I26: =LEFT(CONCATENATE(AE89,"XXXXXXXXXXXXXXXXXXXXXX"),20) -> AucunLieuXXXXXXXXXXX | J26: =IF(QUESTIONS!O23="","AucunLieu",QUESTIONS!O23) -> AucunLieu | N26: B) Identification du document pour les répertoires «Sauvegarde» et Impression | AA26: Ë | AB26: E | AC26: 0 | AD26: AucuneMRC | AE26: AucunLieu | AF26: Zenoma | AG26: Tesselata
A27: GEST26 | B27: 14 | AA27: í | AB27: i | AC27: 0 | AD27: AucuneMRC | AE27: AucunLieu | AF27: Zenoma | AG27: Tesselata
A28: GEST27 | B28: 19 | H28: =P28 -> 20190524-NIL0-AucunLieuXXXXXXXXXXX | J28: =LEN(H28) -> 34 | N28: Identifiants CDPQ | P28: =CONCATENATE(YEAR(QUESTIONS!H25),TEXT(MONTH(QUESTIONS!H25), "00"),TEXT(DAY(QUESTIONS!H25), "00"),"-NIL",QUESTIONS!H29,"-",I26) -> 20190524-NIL0-AucunLieuXXXXXXXXXXX | AA28: Í | AB28: I | AC28: 0 | AD28: AucuneMRC | AE28: AucunLieu | AF28: Zenoma | AG28: Tesselata
A29: GEST28 | B29: 19 | G29: 1 | H29: =P29 -> 20190524-0-AucuneMRC | J29: =LEN(H29) -> 20 | N29: Identifiants CDPQ (données fermées) | P29: =CONCATENATE(YEAR(QUESTIONS!H25),TEXT(MONTH(QUESTIONS!H25), "00"),TEXT(DAY(QUESTIONS!H25), "00"),"-",I21,"-",I23) -> 20190524-0-AucuneMRC | AA29: î | AB29: i | AC29: 0 | AD29: AucuneMRC | AE29: AucunLieu | AF29: Zenoma | AG29: Tesselata
A30: GEST29 | B30: 14 | H30: 0 | AA30: Î | AB30: I | AC30: 0 | AD30: AucuneMRC | AE30: AucunLieu | AF30: Zenoma | AG30: Tesselata
A31: GEST30 | B31: 21 | H31: 0 | N31: C) Liste des éléments qui doivent être saisis avant l'envoi | AA31: ì | AB31: i | AC31: 0 | AD31: AucuneMRC | AE31: AucunLieu | AF31: Zenoma | AG31: Tesselata
A32: GEST31 | B32: 14 | H32: 0 | AA32: Ì | AB32: I | AC32: 0 | AD32: AucuneMRC | AE32: AucunLieu | AF32: Zenoma | AG32: Tesselata
A33: GEST32 | B33: 55 | H33: 0 | I33: =IF(P33="Complet",1,0) -> 0 | N33: Le questionnaire | P33: =IF(QUESTIONS!L27<>1,"Incomplet","Complet") -> Incomplet | Q33: =QUESTIONS!R23 -> Q = 0/45 (0%) | AA33: ï | AB33: i | AC33: 0 | AD33: AucuneMRC | AE33: AucunLieu | AF33: Zenoma | AG33: Tesselata
A34: GEST33 | B34: 55 | I34: 0 | N34: Type d'entreprise (TR,SL,PR) | P34: =IF(QUESTIONS!R29="","Incomplet","Complet") -> Incomplet | Q34: =IF(QUESTIONS!R29="","Aucun",QUESTIONS!R29) -> Aucun | AA34: Ï | AB34: I | AC34: 0 | AD34: AucuneMRC | AE34: AucunLieu | AF34: Zenoma | AG34: Tesselata
A35: GEST34 | B35: 55 | G35: 1 | I35: 1 | N35: La case "Continu" ou "TPTV" | P35: =IF(QUESTIONS!H22=0,"Complet","Complet") -> Complet | Q35: =IF(QUESTIONS!H22=0,"NON-SÉLECTIONNÉ",IF(QUESTIONS!H22=1,"CONTINU","TOUT -PLEIN-TOUT-VIDE")) -> NON-SÉLECTIONNÉ | AA35: ñ | AB35: n | AC35: =SUBSTITUTE(AC34,$AA35,$AB35) -> 0 | AD35: AucuneMRC | AE35: AucunLieu | AF35: Zenoma | AG35: Tesselata
A36: GEST35 | B36: 55 | I36: =IF(P36="Complet",1,0) -> 0 | J36: =IF(CONCATENATE(QUESTIONS!O27,QUESTIONS!O29)="",0,CONCATENATE(QUESTIONS!O27,QUESTIONS!O29)) -> 0 | N36: NIL ou adresse | P36: =IF(J36=0,"Incomplet","Complet") -> Incomplet | Q36: =IF(J36=0,"NIL ou Adresse",J36) -> NIL ou Adresse | AA36: Ñ | AB36: N | AC36: =SUBSTITUTE(AC35,$AA36,$AB36) -> 0 | AD36: =SUBSTITUTE(AD35,$AA36,$AB36) -> AucuneMRC | AE36: =SUBSTITUTE(AE35,$AA36,$AB36) -> AucunLieu | AF36: =SUBSTITUTE(AF35,$AA36,$AB36) -> Zenoma | AG36: =SUBSTITUTE(AG35,$AA36,$AB36) -> Tesselata
A37: GEST36 | B37: 55 | I37: =IF(P37="Complet",1,0) -> 1 | N37: La date de l'audit (QUESTIONS) | P37: =IF(QUESTIONS!O25="","Incomplet",IF(ISTEXT(QUESTIONS!O25),"Incomplet","Complet")) -> Complet | Q37: =QUESTIONS!O25 -> 2019-05-24 | AA37: ó | AB37: o | AC37: 0 | AD37: AucuneMRC | AE37: AucunLieu | AF37: Zenoma | AG37: Tesselata
A38: GEST37 | B38: 55 | I38: 1 | N38: Le nom de l'auditeur (&1) | P38: =IF(H4="PRENNOMX","Incomplet","Complet") -> Complet | Q38: =H4 -> ZENOTESS | AA38: Ó | AB38: O | AC38: 0 | AD38: AucuneMRC | AE38: AucunLieu | AF38: Zenoma | AG38: Tesselata
A39: GEST38 | B39: 55 | I39: 1 | N39: Le courriel de l'auditeur (&2) | P39: =IF(P18="","Incomplet","Complet") -> Complet | Q39: =IF(P18="","Étape &2",P18) -> zenona@gmail.ca | AA39: ô | AB39: o | AC39: 0 | AD39: AucuneMRC | AE39: AucunLieu | AF39: Zenoma | AG39: Tesselata
A40: GEST39 | B40: 55 | I40: =IF(P40="Complet",1,0) -> 0 | N40: Le courriel du transporteur (&4) | P40: =IF(AND(K19=TRUE,P20=""),"Incomplet","Complet") -> Incomplet | Q40: =IF(K19=FALSE,"Pas obligatoire",K20) -> Aucun | AA40: Ô | AB40: O | AC40: 0 | AD40: AucuneMRC | AE40: AucunLieu | AF40: Zenoma | AG40: Tesselata
A41: GEST40 | B41: 57 | I41: 0 | N41: No du dossier de l'auditeur (&5) | P41: =IF(P21="","Incomplet","Complet") -> Incomplet | Q41: =IF(P21="","Étape &5",P21) -> Étape &5 | AA41: ò | AB41: o | AC41: 0 | AD41: AucuneMRC | AE41: AucunLieu | AF41: Zenoma | AG41: Tesselata
A42: GEST41 | B42: 14 | AA42: Ò | AB42: O | AC42: 0 | AD42: AucuneMRC | AE42: AucunLieu | AF42: Zenoma | AG42: Tesselata
A43: GEST42 | B43: 21 | I43: =SUM(I33:I41)/J43 -> 0.4444444444 | J43: 9 | N43: D) Section des MACRO pour imprimer, sauvegarder et envoyer | AA43: ø | AB43: o | AC43: 0 | AD43: AucuneMRC | AE43: AucunLieu | AF43: Zenoma | AG43: Tesselata
A44: GEST43 | B44: 14 | AA44: Ø | AB44: O | AC44: 0 | AD44: AucuneMRC | AE44: AucunLieu | AF44: Zenoma | AG44: Tesselata
A45: GEST44 | B45: 55 | N45: Créer le rapport | AA45: õ | AB45: o | AC45: 0 | AD45: AucuneMRC | AE45: AucunLieu | AF45: Zenoma | AG45: Tesselata
A46: GEST45 | B46: 55 | N46: Imprimer le questionnaire (pdf) | AA46: Õ | AB46: O | AC46: 0 | AD46: AucuneMRC | AE46: AucunLieu | AF46: Zenoma | AG46: Tesselata
A47: GEST46 | B47: 55 | N47: Imprimer le rapport (pdf) | AA47: ö | AB47: o | AC47: 0 | AD47: AucuneMRC | AE47: AucunLieu | AF47: Zenoma | AG47: Tesselata
A48: GEST47 | B48: 55 | N48: Imprimer le questionnaire et les directives (pdf) | AA48: Ö | AB48: O | AC48: 0 | AD48: AucuneMRC | AE48: AucunLieu | AF48: Zenoma | AG48: Tesselata
A49: GEST48 | B49: 55 | N49: Imprimer les directives (pdf) | AA49: œ | AB49: oe | AC49: 0 | AD49: AucuneMRC | AE49: AucunLieu | AF49: Zenoma | AG49: Tesselata
A50: GEST49 | B50: 55 | N50: Envoyer le fichier au CDPQ | AA50: Œ | AB50: OE | AC50: 0 | AD50: AucuneMRC | AE50: AucunLieu | AF50: Zenoma | AG50: Tesselata
A51: GEST50 | B51: 55 | N51: Créer un nouveau questionnaire | AA51: š | AB51: s | AC51: =SUBSTITUTE(AC50,$AA51,$AB51) -> 0 | AD51: AucuneMRC | AE51: AucunLieu | AF51: Zenoma | AG51: Tesselata
A52: GEST51 | B52: 14 | AA52: Š | AB52: S | AC52: 0 | AD52: AucuneMRC | AE52: AucunLieu | AF52: Zenoma | AG52: Tesselata
A53: GEST52 | B53: 21 | C53: Attention, les colonnes «AA -AD" contiennent le correcteur ASCII (89 lignes) | N53: E) Financement et reconnaissance | AA53: ß | AB53: b | AC53: 0 | AD53: AucuneMRC | AE53: AucunLieu | AF53: Zenoma | AG53: Tesselata
A54: GEST53 | B54: 14 | C54: Attention, les colonnes «AA -AD" contiennent le correcteur ASCII (89 lignes) | AA54: ð | AB54: d | AC54: 0 | AD54: AucuneMRC | AE54: AucunLieu | AF54: Zenoma | AG54: Tesselata
A55: GEST54 | B55: 59 | C55: Attention, les colonnes «AA -AD" contiennent le correcteur ASCII (89 lignes) | N55: Cet audit en biosécurité dans le transport a été réalisé dans le cadre du projet « Initiation d'une approche sectorielle globale pour le contrôle du SRRP », financé par le ministère de l'Agriculture, des Pêcheries et de l'Alimentation du Québec (MAPAQ) et Les Éleveurs de Porc du Québec (EPQ). Ce projet est réalisé par l'équipe santé et biosécurité du Centre de développement du porc du Québec (CDPQ). | AA55: Ð | AB55: D | AC55: 0 | AD55: AucuneMRC | AE55: AucunLieu | AF55: Zenoma | AG55: Tesselata
A56: GEST55 | B56: 1 | C56: Attention, les colonnes «AA -AD" contiennent le correcteur ASCII (89 lignes) | AA56: þ | AB56: p | AC56: 0 | AD56: AucuneMRC | AE56: AucunLieu | AF56: Zenoma | AG56: Tesselata
A57: GEST56 | B57: 1 | C57: Attention, les colonnes «AA -AD" contiennent le correcteur ASCII (89 lignes) | AA57: Þ | AB57: p | AC57: 0 | AD57: AucuneMRC | AE57: AucunLieu | AF57: Zenoma | AG57: Tesselata
A58: GEST57 | B58: 1 | C58: Attention, les colonnes «AA -AD" contiennent le correcteur ASCII (89 lignes) | AA58: ú | AB58: u | AC58: 0 | AD58: AucuneMRC | AE58: AucunLieu | AF58: Zenoma | AG58: Tesselata
A59: GEST58 | B59: 1 | C59: Attention, les colonnes «AA -AD" contiennent le correcteur ASCII (89 lignes) | AA59: Ú | AB59: U | AC59: 0 | AD59: AucuneMRC | AE59: AucunLieu | AF59: Zenoma | AG59: Tesselata
A60: GEST59 | B60: 1 | C60: Attention, les colonnes «AA -AD" contiennent le correcteur ASCII (89 lignes) | AA60: û | AB60: u | AC60: 0 | AD60: AucuneMRC | AE60: AucunLieu | AF60: Zenoma | AG60: Tesselata
A61: GEST60 | B61: 1 | C61: Attention, les colonnes «AA -AD" contiennent le correcteur ASCII (89 lignes) | AA61: Û | AB61: U | AC61: 0 | AD61: AucuneMRC | AE61: AucunLieu | AF61: Zenoma | AG61: Tesselata
A62: GEST61 | B62: 1 | C62: Attention, les colonnes «AA -AD" contiennent le correcteur ASCII (89 lignes) | AA62: ù | AB62: u | AC62: 0 | AD62: AucuneMRC | AE62: AucunLieu | AF62: Zenoma | AG62: Tesselata
A63: GEST62 | B63: 1 | C63: Attention, les colonnes «AA -AD" contiennent le correcteur ASCII (89 lignes) | AA63: Ù | AB63: U | AC63: 0 | AD63: AucuneMRC | AE63: AucunLieu | AF63: Zenoma | AG63: Tesselata
A64: GEST63 | B64: 1 | C64: Attention, les colonnes «AA -AD" contiennent le correcteur ASCII (89 lignes) | AA64: ü | AB64: u | AC64: 0 | AD64: AucuneMRC | AE64: AucunLieu | AF64: Zenoma | AG64: Tesselata
A65: GEST64 | B65: 1 | C65: Attention, les colonnes «AA -AD" contiennent le correcteur ASCII (89 lignes) | AA65: Ü | AB65: U | AC65: 0 | AD65: AucuneMRC | AE65: AucunLieu | AF65: Zenoma | AG65: Tesselata
A66: GEST65 | B66: 1 | C66: Attention, les colonnes «AA -AD" contiennent le correcteur ASCII (89 lignes) | AA66: ý | AB66: y | AC66: 0 | AD66: AucuneMRC | AE66: AucunLieu | AF66: Zenoma | AG66: Tesselata
A67: GEST66 | B67: 1 | C67: Attention, les colonnes «AA -AD" contiennent le correcteur ASCII (89 lignes) | AA67: Ý | AB67: Y | AC67: =SUBSTITUTE(AC66,$AA67,$AB67) -> 0 | AD67: AucuneMRC | AE67: AucunLieu | AF67: Zenoma | AG67: Tesselata
A68: GEST67 | B68: 1 | C68: Attention, les colonnes «AA -AD" contiennent le correcteur ASCII (89 lignes) | AA68: ÿ | AB68: y | AC68: 0 | AD68: AucuneMRC | AE68: AucunLieu | AF68: Zenoma | AG68: Tesselata
A69: GEST68 | B69: 1 | C69: Attention, les colonnes «AA -AD" contiennent le correcteur ASCII (89 lignes) | AA69: ÿ | AB69: Y | AC69: 0 | AD69: AucuneMRC | AE69: AucunLieu | AF69: Zenoma | AG69: Tesselata
A70: GEST69 | B70: 1 | C70: Attention, les colonnes «AA -AD" contiennent le correcteur ASCII (89 lignes) | AC70: 0 | AD70: AucuneMRC | AE70: AucunLieu | AF70: Zenoma | AG70: Tesselata
A71: GEST70 | B71: 1 | C71: Attention, les colonnes «AA -AD" contiennent le correcteur ASCII (89 lignes) | AA71: : | AC71: 0 | AD71: AucuneMRC | AE71: AucunLieu | AF71: Zenoma | AG71: Tesselata
A72: GEST71 | B72: 1 | C72: Attention, les colonnes «AA -AD" contiennent le correcteur ASCII (89 lignes) | AA72: ; | AC72: 0 | AD72: AucuneMRC | AE72: AucunLieu | AF72: Zenoma | AG72: Tesselata
A73: GEST72 | B73: 1 | C73: Attention, les colonnes «AA -AD" contiennent le correcteur ASCII (89 lignes) | AA73: . | AC73: 0 | AD73: AucuneMRC | AE73: AucunLieu | AF73: Zenoma | AG73: Tesselata
A74: GEST73 | B74: 1 | C74: Attention, les colonnes «AA -AD" contiennent le correcteur ASCII (89 lignes) | AA74: , | AC74: 0 | AD74: AucuneMRC | AE74: AucunLieu | AF74: Zenoma | AG74: Tesselata
A75: GEST74 | B75: 1 | C75: Attention, les colonnes «AA -AD" contiennent le correcteur ASCII (89 lignes) | AA75: | | AC75: 0 | AD75: AucuneMRC | AE75: AucunLieu | AF75: Zenoma | AG75: Tesselata
A76: GEST75 | B76: 1 | C76: Attention, les colonnes «AA -AD" contiennent le correcteur ASCII (89 lignes) | AA76: ! | AC76: 0 | AD76: AucuneMRC | AE76: AucunLieu | AF76: Zenoma | AG76: Tesselata
A77: GEST76 | B77: 1 | C77: Attention, les colonnes «AA -AD" contiennent le correcteur ASCII (89 lignes) | AA77: " | AC77: 0 | AD77: AucuneMRC | AE77: AucunLieu | AF77: Zenoma | AG77: Tesselata
A78: GEST77 | B78: 1 | C78: Attention, les colonnes «AA -AD" contiennent le correcteur ASCII (89 lignes) | AA78: / | AC78: 0 | AD78: AucuneMRC | AE78: AucunLieu | AF78: Zenoma | AG78: Tesselata
A79: GEST78 | B79: 1 | C79: Attention, les colonnes «AA -AD" contiennent le correcteur ASCII (89 lignes) | AA79: $ | AC79: 0 | AD79: AucuneMRC | AE79: AucunLieu | AF79: Zenoma | AG79: Tesselata
A80: GEST79 | B80: 1 | C80: Attention, les colonnes «AA -AD" contiennent le correcteur ASCII (89 lignes) | AA80: % | AC80: 0 | AD80: AucuneMRC | AE80: AucunLieu | AF80: Zenoma | AG80: Tesselata
A81: GEST80 | B81: 1 | C81: Attention, les colonnes «AA -AD" contiennent le correcteur ASCII (89 lignes) | AA81: ? | AC81: 0 | AD81: AucuneMRC | AE81: AucunLieu | AF81: Zenoma | AG81: Tesselata
A82: GEST81 | B82: 1 | C82: Attention, les colonnes «AA -AD" contiennent le correcteur ASCII (89 lignes) | AA82: & | AC82: 0 | AD82: AucuneMRC | AE82: AucunLieu | AF82: Zenoma | AG82: Tesselata
A83: GEST82 | B83: 1 | C83: Attention, les colonnes «AA -AD" contiennent le correcteur ASCII (89 lignes) | AA83: * | AC83: =SUBSTITUTE(AC82,$AA83,$AB83) -> 0 | AD83: AucuneMRC | AE83: AucunLieu | AF83: Zenoma | AG83: Tesselata
A84: GEST83 | B84: 1 | C84: Attention, les colonnes «AA -AD" contiennent le correcteur ASCII (89 lignes) | AA84: ( | AC84: 0 | AD84: AucuneMRC | AE84: AucunLieu | AF84: Zenoma | AG84: Tesselata
A85: GEST84 | B85: 1 | C85: Attention, les colonnes «AA -AD" contiennent le correcteur ASCII (89 lignes) | AA85: ) | AC85: 0 | AD85: AucuneMRC | AE85: AucunLieu | AF85: Zenoma | AG85: Tesselata
A86: GEST85 | B86: 1 | C86: Attention, les colonnes «AA -AD" contiennent le correcteur ASCII (89 lignes) | AA86: _ | AC86: 0 | AD86: AucuneMRC | AE86: AucunLieu | AF86: Zenoma | AG86: Tesselata
A87: GEST86 | B87: 1 | C87: Attention, les colonnes «AA -AD" contiennent le correcteur ASCII (89 lignes) | AA87: – | AC87: 0 | AD87: AucuneMRC | AE87: AucunLieu | AF87: Zenoma | AG87: Tesselata
A88: GEST87 | B88: 1 | C88: Attention, les colonnes «AA -AD" contiennent le correcteur ASCII (89 lignes) | AA88: — | AC88: 0 | AD88: AucuneMRC | AE88: AucunLieu | AF88: Zenoma | AG88: Tesselata
A89: GEST88 | B89: 1 | C89: Attention, les colonnes «AA -AD" contiennent le correcteur ASCII (89 lignes) | AA89: - | AC89: 0 | AD89: AucuneMRC | AE89: AucunLieu | AF89: Zenoma | AG89: Tesselata
A90: GEST89 | B90: 1 | C90: Attention, les colonnes «AA -AD" contiennent le correcteur ASCII (89 lignes)

Sheet QUESTIONS
A1: NoQ | B1: MEP | C1: Definition | H1: Valeur | I1: Code VBA | J1: Copiecode
A2: NbQuInst | B2: 1 | C2: Installations Nombre Question | H2: =I24 -> 15 | I2: 0
A3: PtQInstA | B3: 1 | C3: Installations Pointage Questions | H3: =I25 -> 0 | I3: 0
A4: PtQInstT | B4: 1 | C4: Installations Pointage Total | H4: =I26 -> 860 | I4: 21
A5: NbQuProc | B5: 1 | C5: Procédures Nombre Question | H5: =J24 -> 30 | I5: 22
A6: PtQProcA | B6: 1 | C6: Procédures Pointage Questions | H6: =J25 -> 0 | I6: 89
A7: PtQProcT | B7: 1 | C7: Procédures Pointage Total | H7: =J26 -> 1620 | I7: 89
A8: NbQuTout | B8: 1 | C8: Total Nombre Question | H8: =K24 -> 45 | I8: 1
A9: PtQToutA | B9: 1 | C9: Total Pointage Questions | H9: =K25 -> 0 | I9: $Z:$Z
A10: PtQToutT | B10: 1 | C10: Total Pointage Total | H10: =K26 -> 2480 | I10: =CONCATENATE("$M$",I5,":$V$",I6) -> $M$22:$V$89
A11: NbQuesSO | B11: 1 | C11: Question Sans Objets (n) | H11: =L24 -> 0 | I11: =CONCATENATE("$M$",I5,":$Y$",I6) -> $M$22:$Y$89
A12: NbQRepon | B12: 1 | C12: Questions répondues (n) | H12: =L25 -> 0 | I12: =CONCATENATE("$W$",I5,":$Y$",I6) -> $W$22:$Y$89
A13: NbQueTot | B13: 1 | C13: Questions totales (n) | H13: =L26 -> 45 | I13: M22:M23 | J13: M22:V22,M23:N29,R23:V29,M30:V86,W22:Z86
A14: RotaCont | B14: 1 | C14: Rotation vs. continu | I14: =ROW(I35) -> 35
A15: Type | B15: 1 | C15: Type d'élevage ou entreprise | H15: =R29 ->  | I15: =COUNTIF(H:H,"Titre") -> 10
A16: IndicOR | B16: 1 | C16: Proportion questions Or OK | H16: =SUMIFS($F35:$F287,$H35:$H287,2)/F25 -> 0
A17: QUEST17 | B17: 1
A18: QUEST18 | B18: 1
A19: QUEST19 | B19: 1
A20: QUEST20 | B20: 1
A21: QUEST21 | B21: 1
A22: CodCTPTV | B22: 1 | G22: 1 | H22: 0
A23: IdLieuNM | B23: 16 | G23: 1 | H23: =IF(O23="","INCONNU",O23) -> INCONNU | I23: I | J23: P | K23: T | L23: QT | N23: Identification du lieu | R23: =CONCATENATE("Q = ",L25,"/",L26," (",TEXT(L27,"0%"),")",) -> Q = 0/45 (0%)
A24: NmReLieu | B24: 16 | C24: QI | D24: QP | F24: QO | G24: 1 | H24: =IF(O24="","INCONNU",O24) -> INCONNU | I24: =COUNTIFS($E35:$E287,"I",$K35:$K287,">0") -> 15 | J24: =COUNTIFS($E35:$E287,"P",$K35:$K287,">0") -> 30 | K24: =COUNTIFS($K35:$K287,">0") -> 45 | L24: =COUNTIF(H35:H287,"1") -> 0 | N24: Nom du responsable | R24: =CONCATENATE("QI = ",C26,"; QP = ",D26) -> QI = 15; QP = 30
A25: DateEval | B25: 18 | C25: =COUNTIF(E35:E287,"I") -> 15 | D25: =COUNTIF(E35:E287,"P") -> 30 | F25: =COUNTIF(F35:F287,1) -> 8 | G25: 1 | H25: =O25 -> 43609 | I25: =SUM(I35:I287) -> 0 | J25: =SUM(J35:J287) -> 0 | K25: =J25+I25 -> 0 | L25: =COUNTIF(H35:H287,">0") -> 0 | N25: Date de l'évaluation | O25: =TODAY() -> 2019-05-24 | R25: =CONCATENATE("I = ",I25,"/",I26," (",TEXT(I27,"0%"),")",) -> I = 0/860 (0%)
A26: NmVeteri | B26: 16 | C26: =C25-SUMIFS($H35:$H287,$E35:$E287,"I",$H35:$H287,1) -> 15 | D26: =D25-SUMIFS($H35:$H287,$E35:$E287,"P",$H35:$H287,1) -> 30 | F26: =F25-SUMIFS($H35:$H287,$F35:$F287,1,$H35:$H287,1) -> 8 | G26: 1 | H26: =IF(O26="","Dr Inconnu",O26) -> Dr Inconnu | I26: =SUMIF($E35:$E287,"I",$K35:$K287) -> 860 | J26: =SUMIF($E35:$E287,"P",$K35:$K287) -> 1620 | K26: =I26+J26 -> 2480 | L26: =COUNTIF(C35:C287,">0") -> 45 | N26: Nom du consultant | R26: =CONCATENATE("P = ",J25,"/",J26," (",TEXT(J27,"0%"),")",) -> P = 0/1620 (0%)
A27: AdreLieu | B27: 16 | G27: 1 | H27: =IF(O27="","Adresse inconnue",O27) -> Adresse inconnue | I27: =IF(I26=0,0,I25/I26) -> 0 | J27: =IF(J26=0,0,J25/J26) -> 0 | K27: =IF(K26=0,0,K25/K26) -> 0 | L27: =IF(L26=0,0,L25/L26) -> 0 | N27: Adresse | R27: =CONCATENATE("Total = ",K25,"/",K26," (",TEXT(K27,"0%"),")",) -> Total = 0/2480 (0%)
A28: NomAudit | B28: 16 | G28: 1 | H28: =O28 -> Zenoma Tesselata | N28: Nom de l'auditeur | O28: =CONCATENATE(GESTION!P17," ",GESTION!R17) -> Zenoma Tesselata | R28: =CONCATENATE("Pointage moyen (IP) = ",TEXT(AVERAGE(I27:J27),"0%")) -> Pointage moyen (IP) = 0%
A29: NIL | B29: 16 | G29: 1 | H29: =O29 -> 0 | N29: No du lieu (NIL) | R29: =CONCATENATE(IF(H30=TRUE,"TR",""),IF(H31=TRUE,"SL",""),IF(H32=TRUE,"PR",""),IF(H33=TRUE,"",""),IF(H30=1,"TR",""),IF(H31=1,"SL",""),IF(H32=1,"PR",""),IF(H33=1,"","")) -> 
A30: CodeTR | B30: 22 | H30: FALSE | N30: Transport (camions) | R30: =CONCATENATE("Q. OR conforme (",TEXT(H16,"0%"),")") -> Q. OR conforme (0%)
A31: CodeSL | B31: 23 | H31: FALSE | N31: Salle de lavage | R31: non-conforme
A32: QUEST32 | B32: 30 | H32: FALSE | R32: partiellement conforme
A33: QUEST33 | B33: 29 | H33: FALSE | R33: conforme
A34: QUEST34 | B34: 26 | C34: PTMAX | D34: PTINTER | E34: I/P | F34: OR
A35: 1954 | B35: 20 | G35: =MAX(LEN(N35)/77,LEN(X35)/175) -> 0.2987012987 | H35: =IF(B35=20,"Titre",IF(L35=1,1,0)) -> Titre | I35: =IF($E35="I",IF($H35=2,$C35,IF($H35=3,$D35,IF(H35=4,1,0))),0) -> 0 | J35: =IF($E35="P",IF($H35=2,$C35,IF($H35=3,$D35,IF(H35=4,1,0))),0) -> 0 | K35: =IF(H35=1,0,C35) -> 0 | M35: =IF(F35=1,1,"") ->  | N35: Personnel et formation | R35: S. o. | S35: Oui | T35: Part. | U35: Non | X35: Personnel et formation
A36: 11 | B36: 5 | C36: 50 | D36: =C36/2 -> 25 | E36: P | G36: =MAX(LEN(N36)/77,LEN(X36)/175) -> 2.974025974 | H36: 0 | I36: =IF($E36="I",IF($H36=2,$C36,IF($H36=3,$D36,IF(H36=4,1,0))),0) -> 0 | J36: =IF($E36="P",IF($H36=2,$C36,IF($H36=3,$D36,IF(H36=4,1,0))),0) -> 0 | K36: =IF(H36=1,0,C36) -> 50 | M36: =IF(F36=1,1,"") ->  | N36: Q01. Au moins une fois par année, des employés reçoivent une formation continue sur la biosécurité et le lavage des véhicules de transport, dispensée par une tierce partie indépendante ou par à une formation en ligne. (P-50 pts) | X36: Q01. Pour répondre « oui », au moins 50 % des employés qui lavent les remorques doivent avoir reçu une formation au cours des 12 derniers mois. Cette formation doit avoir été donnée par une tierce partie indépendante (autre que des employés travaillant à la station de lavage ou le propriétaire).
A37: 462 | B37: 4 | C37: 10 | D37: =C37/2 -> 5 | E37: P | G37: 2.181818182 | H37: 0 | I37: =IF($E37="I",IF($H37=2,$C37,IF($H37=3,$D37,IF(H37=4,1,0))),0) -> 0 | J37: =IF($E37="P",IF($H37=2,$C37,IF($H37=3,$D37,IF(H37=4,1,0))),0) -> 0 | K37: =IF(H37=1,0,C37) -> 10 | N37: Q02. L’accès aux bâtiments (garages et stations de lavage) est limité au personnel désigné et un avis à cet effet est affiché à l’entrée de chaque bâtiment. (P-10 pts) | X37: Q02. Pour répondre « oui », une affiche indiquant que l'accès est restreint doit être affichée à l'entrée de la station de lavage. Un système de barrure doit aussi être en place et fonctionnel.
A38: 592 | B38: 4 | C38: 100 | D38: 50 | E38: P | G38: 2.597402597 | H38: 0 | I38: 0 | J38: 0 | K38: 100 | N38: Q03. Après le chargement ou le déchargement des porcs, le personnel nettoie, désinfecte et sèche ses mains (produits à base d'alcool, lingettes, etc.) en entrant dans la cabine du camion. (P-100 pts) | X38: Q03. Pour répondre « oui », des lingettes désinfectantes ou un distributeur de désinfectant (type Purell) doivent être disponibles dans la cabine du camionneur.
A39: 1959 | B39: 20 | D39: 0 | G39: 0.2337662338 | H39: Titre | I39: 0 | J39: 0 | K39: 0 | N39: Site et bâtiments | R39: S. o. | S39: Oui | T39: Part. | U39: Non | X39: Site et bâtiments
A40: 441 | B40: 4 | C40: 100 | D40: 50 | E40: I | G40: 1.025974026 | H40: 0 | I40: 0 | J40: 0 | K40: 100 | N40: Q04. La station de lavage possède un système de lavage à pression. (I-100 pts) | X40: Q04. Pour répondre « oui », le système de lavage à pression doit être installé et fonctionnel.
A41: 814 | B41: 4 | C41: 100 | D41: 50 | E41: I | G41: 2.668571429 | H41: 0 | I41: 0 | J41: 0 | K41: 100 | N41: Q05. La conception des installations et des équipements permet le séchage complet des véhicules entre chaque activité de transport durant toute l'année. (I-100 pts) | X41: Q05. Pour répondre « oui », il faut vérifier la faisabilité de sécher toutes les remorques de l'entreprise. Si l'entreprise possède moins de trois remorques et a la possibilité de sécher toutes ses remorques à l'intérieur pendant un minimum de 8 heures, ce sera « oui » Si l'entreprise doit envisager un séchage plus rapide (ex. : 2 heures) elle devra nécessairement posséder des installations de séchage de type TADD ou Bio Dri pour être éligible à un « oui ».
A42: 812 | B42: 4 | C42: 50 | D42: 25 | E42: I | G42: 2.376623377 | H42: 0 | I42: 0 | J42: 0 | K42: 50 | N42: Q06. La conception de la station de lavage permet aux véhicules lavés de traverser le bâtiment et ainsi prévenir la circulation sur les voies de passage des camions sales. (I-50 pts) | X42: Q06. Pour répondre « oui », la porte d'entrée de la station, destinée aux remorques, est différente de la porte de sortie (normalement de l'autre côté du bâtiment), évitant ainsi au véhicule de revenir sur ses pas.
A43: 806 | B43: 4 | C43: 100 | D43: 50 | E43: I | G43: 1.844155844 | H43: 0 | I43: 0 | J43: 0 | K43: 100 | N43: Q07. La température ambiante de la station de lavage peut être maintenue au-dessus du point de congélation pendant toute l'année. (I-100 pts) | X43: Q07. Pour répondre « oui », le système de chauffage ambiant doit être fonctionnel.
A44: 447 | B44: 4 | C44: 20 | D44: 10 | E44: I | G44: 1.788571429 | H44: 0 | I44: 0 | J44: 0 | K44: 20 | N44: Q08. Il y a présence d'équipement à air chaud pour accélérer le processus de séchage. (I-20 pts) | X44: Q08. Pour répondre « oui », une source de chaleur d'appoint pouvant être placée en arrière des remorques doit être présente dans la salle de séchage. Le système de chauffage ambiant (radiant, chaufferette avec ventilateur poussant la chaleur dans la salle, etc.) n'est pas considéré comme un chauffage d'appoint.
A45: 807 | B45: 4 | C45: 5 | D45: 2.5 | E45: I | G45: 2 | H45: 0 | I45: 0 | J45: 0 | K45: 5 | N45: Q09. Les équipements de la station de lavage peuvent réchauffer et sécher les remorques à des températures de 60 °C ou plus à longueur d'année. (I-5 pts) | X45: Q09. Pour répondre « oui », un système TADD ou Bio Dri doit être installé et fonctionnel à l'année, permettant de réchauffer les remorques à des températures de 60 °C et plus.
A46: 160 | B46: 6 | C46: 100 | D46: 50 | E46: I | F46: 1 | G46: 2.462857143 | H46: 0 | I46: 0 | J46: 0 | K46: 100 | M46: 1 | N46: Q10. Le plancher, le plafond et les murs de la station de lavage sont fabriqués avec des matériaux lavables et non poreux (absence de bois). (I-100 pts) | X46: Q10. Pour répondre « oui », il faut que le plancher (incluant les marches s'il y en a), le plafond et les murs soient construits avec des matériaux lavables (béton, aluminium, plastique, etc.). Ceci inclut les portes, les cadres de portes, les casiers, ou tout autre équipement présent dans la salle de lavage. Si un ou deux équipements (excluant l'infrastructure) ne sont pas facilement lavables, la réponse devient « partiel ».
A47: 158 | B47: 6 | C47: 100 | D47: 50 | E47: I | F47: 1 | G47: 1.298701299 | H47: 0 | I47: 0 | J47: 0 | K47: 100 | M47: 1 | N47: Q11. La station de lavage peut être complètement drainée après le lavage d'un véhicule. (I-100 pts) | X47: Q11. Pour répondre « oui », le plancher de la station de lavage doit se drainer naturellement (pente) immédiatement après le lavage d'un véhicule afin d'éviter l'accumulation de grandes flaques d'eau en certains endroits.
A48: 431 | B48: 5 | C48: 50 | D48: 25 | E48: I | G48: 1.883116883 | H48: 0 | I48: 0 | J48: 0 | K48: 50 | N48: Q12. Dans la station de lavage, il existe des divisions physiques, permanentes ou amovibles, pour séparer les véhicules de transport. (I-50 pts) | X48: Q12. Pour répondre « oui », lorsqu'il y a plus d'une baie de lavage (espace d'un camion), un mur ou un rideau doit séparer les baies, à moins que le volume de lavage soit très faible (un camion par baie de lavage). S'il n'y a qu'un espace de lavage, la réponse est alors « sans objet ».
A49: 796 | B49: 6 | C49: 50 | D49: 25 | E49: I | G49: 1.891428571 | H49: 0 | I49: 0 | J49: 0 | K49: 50 | N49: Q13. Les activités de mécanique et d'entreposage sont séparées de l'activité de lavage. (I-50 pts) | X49: Q13. Pour répondre « oui », aucune activité de mécanique ne doit être réalisée dans la salle de lavage. Tout le matériel présent doit être en lien avec des activités de lavage seulement (aucun entreposage). Pour une réponse « partiel », un rideau doit être présent pour séparer les activités de mécanique des activités de lavage.
A50: 473 | B50: 5 | C50: 50 | D50: 25 | E50: P | G50: 2.028571429 | H50: 0 | I50: 0 | J50: 0 | K50: 50 | N50: Q14. La circulation des véhicules et des employés dans les bâtiments est effectuée de façon à prévenir la contamination des véhicules propres. (P-50 pts) | X50: Q14. Pour répondre « oui », une séparation physique (mur, porte, rideau) doit exister entre la section où sont stationnés les véhicules lavés et ceux qui ne le sont pas. Les employés qui arrivent avec un camion sale ne doivent pas passer par la section des camions lavés. Cette question est « sans objet » pour les entreprises qui ont un seul véhicule.
A51: 196 | B51: 6 | C51: 50 | D51: 25 | E51: I | G51: 1.675324675 | H51: 0 | I51: 0 | J51: 0 | K51: 50 | N51: Q15. En tout temps, les véhicules propres peuvent se stationner à au moins 10 mètres de distance des véhicules sales. (I-50 pts) | X51: Q15. Pour répondre « oui », la zone destinée aux véhicules propres doit être bien déterminée et située à plus de 10 mètres de la zone où attendent les véhicules sales.
A52: 81 | B52: 4 | C52: 5 | D52: 2.5 | E52: I | G52: 1.116883117 | H52: 0 | I52: 0 | J52: 0 | K52: 5 | N52: Q16. La porcherie la plus proche se situe à plus de 1 km des installations. (I-5 pts) | X52: Q16. Pour répondre « oui », la distance doit être évaluée à vol d'oiseau.
A53: 516 | B53: 4 | C53: 10 | D53: 5 | E53: P | G53: 2 | H53: 0 | I53: 0 | J53: 0 | K53: 10 | N53: Q17. Un programme de lutte antiparasitaire est appliqué et tenu à jour. (P-10 pts) | X53: Q17. Pour répondre « oui », le contrôle peut se faire par un exterminateur indépendant et des factures ou rapports doivent être disponibles. Comme alternative, si le transporteur le fait lui même, des factures d'achat de produit doivent être disponibles et des boîtes externes (à l'extérieur????) avec des appâts à l'intérieur doivent être visibles.
A54: 1965 | B54: 20 | D54: 0 | G54: 0.2987012987 | H54: Titre | I54: 0 | J54: 0 | K54: 0 | N54: Véhicules de transport | R54: S. o. | S54: Oui | T54: Part. | U54: Non | X54: Véhicules de transport
A55: 287 | B55: 7 | C55: 10 | D55: 5 | E55: I | G55: 1.935064935 | H55: 0 | I55: 0 | J55: 0 | K55: 10 | N55: Q18. Les remorques ont une porte qui permet d'accéder à l'intérieur sans passer par les quais de chargement et de déchargement des porcs. (I-10 pts) | X55: Q18. Pour répondre « oui », la porte doit être localisée sur le coté et à l'arrière de toutes les remorques. Si plus d'une remorque en a une, mais que d'autres n'en ont pas, la réponse est « partiel ».
A56: 207 | B56: 5 | C56: 10 | D56: 5 | E56: P | G56: 1.662337662 | H56: 0 | I56: 0 | J56: 0 | K56: 10 | N56: Q19. La circulation des véhicules chargés de porcs est interdite sur le site de la station de lavage et des garages. (P-10 pts) | X56: Q19. Pour répondre « oui », les remorques contenant des porcs vivants ou morts ne doivent pas circuler sur le site, incluant les transferts de remorque à remorque. Il faut valider si la personne responsable de la station est consciente que cela ne devrait pas se produire.
A57: 107 | B57: 4 | C57: 100 | D57: 50 | E57: P | F57: 1 | G57: 2.12 | H57: 0 | I57: 0 | J57: 0 | K57: 100 | M57: 1 | N57: Q20. L'accès aux installations de lavage permet un lavage quotidien de la flotte de véhicules. (P-100 pts) | X57: Q20. Pour répondre « oui », un calcul doit être fait afin de valider s'il serait possible de laver tous les véhicules dans la salle de lavage, en présumant qu'ils y retourneraient une fois par jour (à moins que les véhicules soient utilisés pour de longues distances). Le lavage d'une remorque de 53 pieds est estimé à un minimum de 3 heures (1 1/2 heure avec 2 hommes).
A58: 101 | B58: 7 | C58: 100 | D58: 50 | E58: P | G58: 2.662337662 | H58: 0 | I58: 0 | J58: 0 | K58: 100 | N58: Q21. Les véhicules de transport utilisés pour le transport des porcs entre les sites de production et le transport des porcs vers les centres de rassemblement et les abattoirs sont différents. (P-100 pts) | X58: Q21. Pour répondre « oui », une ségrégation complète des camions utilisés pour les transports d'animaux internes par rapport aux transports externes (vers les abattoirs et les postes de rassemblement) doit être en place. Si certains camions sont ségrégués (au moins 50 %), mais que d'autres font les deux types de transport, la réponse est « partiel ». Si aucun plan n'est mis en place, la réponse est « non ».
A59: 111 | B59: 7 | C59: 100 | D59: 50 | E59: P | G59: 1.994285714 | H59: 0 | I59: 0 | J59: 0 | K59: 100 | N59: Q22. Les véhicules de transport sont lavés, désinfectés et séchés avant d'avoir transporté des porcelets ou des sujets reproducteurs. (P-100 pts) | X59: Q22. Une entreprise qui fait plus d'un transport de porcs à l'intérieur du même système de production (pig flow) sans lavage entre les chargements est éligible au « oui ». Par contre, une entreprise qui effectue occasionnellement des transports de porcelets entre différents systèmes de production sans laver ses remorques aura la cote « partiel ».
A60: 1968 | B60: 20 | D60: 0 | G60: 0.5584415584 | H60: Titre | I60: 0 | J60: 0 | K60: 0 | N60: Nettoyage, lavage, désinfection et séchage | R60: S. o. | S60: Oui | T60: Part. | U60: Non | X60: Nettoyage, lavage, désinfection et séchage
A61: 621 | B61: 4 | C61: 10 | D61: 5 | E61: P | G61: 2.441558442 | H61: 0 | I61: 0 | J61: 0 | K61: 10 | N61: Q23. Un programme ou une affiche portant sur le nettoyage, le lavage, la désinfection et le séchage (NLDS) des véhicules de transport est disponible sur le site des opérations. (P-10 pts) | X61: Q23. Pour répondre « oui », un document explicatif comportant tous les éléments du NLDS est disponible dans la salle de lavage. Ce document doit être de format papier et accessible dans un dossier ou affiché. Ce document peut être générique (ex. : celui du CCSP) ou bien developpé par l'entreprise.
A62: 622 | B62: 4 | C62: 50 | D62: 25 | E62: P | G62: 2.597402597 | H62: 0 | I62: 0 | J62: 0 | K62: 50 | N62: Q24. Le processus d’assainissement des véhicules de transport respecte les étapes suivantes : 1) curage; 2) rinçage; 3) savonnage avec un détergent; 4) lavage; 5) rinçage; 6) désinfection. (P-50 pts) | X62: Q24. Pour répondre « oui », les étapes 1 à 6 doivent toujours être effectuées, incluant l'utilisation d'un savon et d'un désinfectant.
A63: 168 | B63: 4 | C63: 10 | D63: 5 | E63: P | G63: 1.857142857 | H63: 0 | I63: 0 | J63: 0 | K63: 10 | N63: Q25. La station de lavage possède une procédure pour laver, désinfecter et drainer la ou les baies de lavage entre chaque véhicule. (P-10 pts) | X63: Q25. Pour répondre « oui », les murs et le plancher doivent être rincés et drainés afin d'enlever toute la matière organique de la baie de lavage. Les flaques d'eau doivent être drainées. Le bas des murs et le plancher doivent être désinfectés. Toutes ces étapes doivent être réalisées dans la procédure de travail.
A64: 186 | B64: 6 | C64: 100 | D64: 50 | E64: P | G64: 1.272727273 | H64: 0 | I64: 0 | J64: 0 | K64: 100 | N64: Q26. Les véhicules de transport sont complètement séchés avant de reprendre la route. (P-100 pts) | X64: Q26. Pour une réponse « partiel », il faut au moins que 50 % des remorques soient séchées avant de reprendre la route.
A65: 833 | B65: 4 | C65: 100 | D65: 50 | E65: P | F65: 1 | G65: 2.402597403 | H65: 0 | I65: 0 | J65: 0 | K65: 100 | M65: 1 | N65: Q27. Durant le processus d'assainissement, tous les équipements du camion ou de la remorque (pelles, panneaux, etc.) ainsi que les bottes sont lavés, désinfectés et séchés. (P-100 pts) | X65: Q27. Pour répondre « oui », il faut vérifier que tous les équipements des casiers sous les remorques et les bottes ont été lavés. Il est important de vérifier que les bottes prévues pour le chargement et le déchargement des porcs soient différentes de celles utilisées pour conduire le camion.
A66: 1980 | B66: 20 | D66: 0 | G66: 0.5194805195 | H66: Titre | I66: 0 | J66: 0 | K66: 0 | N66: Instruments de manipulation des animaux | R66: S. o. | S66: Oui | T66: Part. | U66: Non | X66: Instruments de manipulation des animaux
A67: 596 | B67: 4 | C67: 20 | D67: 10 | E67: I | G67: 1.688311688 | H67: =IF(B67=20,"Titre",IF(L67=1,1,0)) -> 0 | I67: 0 | J67: 0 | K67: 20 | N67: Q28. Les matériaux des instruments de manipulation ne sont pas faits en bois, se lavent et se désinfectent facilement. (I-20 pts) | X67: Q28. Pour répondre « oui », les pelles et les panneaux doivent être faits en plastique ou en métal (les manches en bois doivent être remplacés). Les panneaux monocoques sont à privilégier. Les panneaux et les pelles brisés ou très usés doivent être remplacés.
A68: 606 | B68: 4 | C68: 100 | D68: 50 | E68: P | F68: 1 | G68: 2.350649351 | H68: 0 | I68: 0 | J68: 0 | K68: 100 | M68: 1 | N68: Q29. Les instruments de manipulation des porcs sont utilisés uniquement dans les véhicules de transport et les remorques et ils ne sont pas utilisés dans les bâtiments. (P-100 pts) | X68: Q29. Pour répondre « oui », les panneaux, les bâtons électriques et les marteaux à tatouer ne sont pas partagés avec la ferme et n'entrent jamais dans les bâtiments.
A69: 616 | B69: 4 | C69: 20 | D69: 10 | E69: P | G69: 1.922077922 | H69: 0 | I69: 0 | J69: 0 | K69: 20 | N69: Q30. Les instruments de manipulation souillés (ex : bâton électrique) sont entreposés dans des contenants lavables ou des sacs jetables. (P-20 pts) | X69: Q30. Pour répondre « oui », le bâton électrique, lorsque souillé, ne peut pas être entreposé directement dans la cabine ou sous la couchette sans être d'abord placé dans un contenant ou un sac jetable.
A70: 1983 | B70: 20 | D70: 0 | G70: 0.2597402597 | H70: Titre | I70: 0 | J70: 0 | K70: 0 | N70: Vêtements et bottes | R70: S. o. | S70: Oui | T70: Part. | U70: Non | X70: Vêtements et bottes
A71: 131 | B71: 4 | C71: 50 | D71: 25 | E71: P | G71: 1.594285714 | H71: 0 | I71: 0 | J71: 0 | K71: 50 | N71: Q31. Des vêtements et des bottes propres sont disponibles pour chaque site de production visité. (P-50 pts) | X71: Q31. Pour répondre « oui », un ensemble comprenant une salopette et des bottes doit être disponible pour chaque site visité, à moins que les sites fassent partie du même système (pig flow) que la ferme visitée initialement (maternité vers une pouponnière vers un engraissement).
A72: 571 | B72: 4 | C72: 20 | D72: 10 | E72: P | G72: 2.714285714 | H72: 0 | I72: 0 | J72: 0 | K72: 20 | N72: Q32. Des vêtements de travail spécifiques sont réservés aux activités de chargement des porcs sur les sites de production et de déchargement des porcs aux centres de rassemblement et aux abattoirs. (P-20 pts) | X72: Q32. Pour répondre « oui », des ensembles de salopettes, de bottes et des gants (lorsqu'utilisés) sont consacrés aux transports internes et à l'embarquement des porcs et des truies de réforme pour l'abattage. D'autres ensembles sont consacrés uniquement pour le débarquement des porcs à l'abattoir ou au centre de rassemblement. L'utilisation de bottes de plastique à l'abattoir ou au poste de rassemblement est une alternative acceptable.
A73: 581 | B73: 4 | C73: 100 | D73: 50 | E73: P | G73: 2.246753247 | H73: 0 | I73: 0 | J73: 0 | K73: 100 | N73: Q33. Après le chargement ou le déchargement des porcs, les vêtements et les bottes de travail souillés sont enlevés avant d’entrer dans la cabine du camionneur. (P-100 pts) | X73: Q33. Pour répondre « oui », s'assurer que les bottes et le survêtement utilisés pour la manipulation des porcs sont enlevés avant d'entrer dans la cabine.
A74: 137 | B74: 4 | C74: 50 | D74: 25 | E74: P | G74: 3.116883117 | H74: 0 | I74: 0 | J74: 0 | K74: 50 | N74: Q34. Les vêtements et les bottes souillés sont entreposés, dans un bac ou un sac en plastique ou encore dans le camion avec les porcs, de façon à prévenir la contamination des coffres et de la cabine. (P-50 pts) | X74: Q34. Pour répondre « oui », les vêtements et les bottes ne peuvent pas être placés directement dans les casiers sous les remorques ou sous la couchette. Il faut que des bacs ou des sacs de plastique soient utilisés. Comme alternative, la réponse pourra être « oui » si les vêtements et les bottes sont laissés directement dans la remorque sale.
A75: 1986 | B75: 20 | D75: 0 | G75: 0.1038961039 | H75: Titre | I75: 0 | J75: 0 | K75: 0 | N75: Litière | R75: S. o. | S75: Oui | T75: Part. | U75: Non | X75: Litière
A76: 541 | B76: 4 | C76: 10 | D76: 5 | E76: P | G76: 2.623376623 | H76: 0 | I76: 0 | J76: 0 | K76: 10 | N76: Q35. La litière de copeaux de bois, de bran de scie ou la paille est entreposée de façon à éviter la contamination par des produits chimiques, de la vermine, des oiseaux ou des bottes sales. (P-10 pts) | X76: Q35. Pour répondre « oui », la litière doit être entreposée dans un bâtiment ou une remorque fermée en tout temps afin d'éviter l'intrusion de la vermine et des oiseaux. Aucun produit chimique ne doit être conservé dans cette section. Une paire de bottes ou des sacs de plastique doivent être disponibles pour avoir accès à cet endroit.
A77: 146 | B77: 6 | C77: 50 | D77: 25 | E77: P | G77: 2.090909091 | H77: 0 | I77: 0 | J77: 0 | K77: 50 | N77: Q36. Le transporteur utilise une station d'écurage autre que celles qui sont accessibles sur les sites des centres de rassemblement et des abattoirs. (P-50 pts) | X77: Q36. Pour répondre « partiel », il faut que l'écurage de la remorque soit fait ailleurs plus de 50 % du temps.
A78: 1989 | B78: 20 | D78: 0 | G78: 0.6753246753 | H78: Titre | I78: 0 | J78: 0 | K78: 0 | N78: Produits de nettoyage, de lavage et de désinfection | R78: S. o. | S78: Oui | T78: Part. | U78: Non | X78: Produits de nettoyage, de lavage et de désinfection
A79: 681 | B79: 4 | C79: 10 | D79: 5 | E79: P | G79: 0.8114285714 | H79: 0 | I79: 0 | J79: 0 | K79: 10 | N79: Q37. Les produits entreposés sont bien identifiés. (P-10 pts) | X79: Q37. Pour répondre « oui », les noms des produits dans les barils ou dans les contenants portables sont bien identifiés et toujours visibles.
A80: 167 | B80: 6 | C80: 100 | D80: 50 | E80: P | F80: 1 | G80: 1.885714286 | H80: 0 | I80: 0 | J80: 0 | K80: 100 | M80: 1 | N80: Q38. Du savon ou un autre produit détergent est utilisé lors du lavage. (P-100 pts) | X80: Q38. Pour répondre « oui », le savon doit être utilisé de façon systématique lors du lavage de toutes les remorques. Pour répondre « partiel », il faut que le savon soit utilisé dans plus de 50 % des lavages. Pour être éligible aux deux réponses antérieures, le savon devra être disponible dans la baie de lavage en tout temps.
A81: 177 | B81: 7 | C81: 100 | D81: 50 | E81: P | F81: 1 | G81: 2.931428571 | H81: 0 | I81: 0 | J81: 0 | K81: 100 | M81: 1 | N81: Q39. Les désinfectants utilisés sont efficaces contre le virus de la diarrhée épidémique porcine (DEP) et celui du SRRP. (P-100 pts) | X81: Q39. Pour répondre « oui », s'assurer que le nom du désinfectant soit dans la liste des désinfectants reconnus comme étant efficaces contre le virus de la DEP dans le document publié par l'Équipe québécoise de santé porcine (EQSP), disponible sur le site Web des Éleveurs de porcs du Québec. Si les remorques sont sorties dehors 10 minutes après l'application du désinfectant, s'assurer d'ajouter du propylène glycol de grade alimentaire en période hivernale (si cela n'est pas fait, la réponse est « partiel »).
A82: 1991 | B82: 20 | D82: 0 | G82: 0.2467532468 | H82: Titre | I82: 0 | J82: 0 | K82: 0 | N82: Points de contrôle | R82: S. o. | S82: Oui | T82: Part. | U82: Non | X82: Points de contrôle
A83: 752 | B83: 4 | C83: 100 | D83: 50 | E83: P | G83: 1.537142857 | H83: 0 | I83: 0 | J83: 0 | K83: 100 | N83: Q40. Le camionneur n'entre jamais dans la zone (bâtiments) réservée à la production. (P-100 pts) | X83: Q40. Pour répondre « oui », le camionneur ne doit jamais dépasser les portes d'entrée des bâtiments, que ce soit sur le quai ou l'entrée des employés. Si le camionneur entre occasionnellement dans les bâtiments pour aider les producteurs, la réponse est alors « non ».
A84: 753 | B84: 4 | C84: 50 | D84: 25 | E84: P | G84: 2.737142857 | H84: 0 | I84: 0 | J84: 0 | K84: 50 | N84: Q41. Les porcs transportés par l'entreprise sont chargés uniquement par le personnel de la ferme. (P-50 pts) | X84: Q41. Pour répondre « oui », le transporteur et son aide ne doivent jamais entrer dans les bâtiments pour sélectionner et charger les porcs dans la remorque. Les équipes de chargement fournies par le transporteur (arrivant avec un véhicule différent) qui entrent par le corridor danois ou la douche et qui suivent le protocole d'entrée de la ferme, comme des employés, sont acceptables. Il faut, par contre, s'assurer qu'elles ne poussent pas les animaux jusque dans la remorque.
A85: 696 | B85: 5 | C85: 20 | D85: 10 | E85: P | G85: 2.165714286 | H85: 0 | I85: 0 | J85: 0 | K85: 20 | N85: Q42. L’entretien et la calibration des équipements de désinfection sont effectués selon les recommandations du fabricant. (P-20 pts) | X85: Q42. Pour répondre « oui », le fabricant doit avoir passé et calibré les équipements au cours de la dernière année. S'il n'y a pas de soutien technique offert par le fabricant ou une tierce personne, il faudra discuter avec le transporteur afin de valider s'il sait comment faire la calibration. Si l'information recueillie semble claire et raisonnable, la réponse sera « oui ».
A86: 121 | B86: 6 | C86: 20 | D86: 10 | E86: P | G86: 2.537142857 | H86: 0 | I86: 0 | J86: 0 | K86: 20 | N86: Q43. Un contrôle visuel de la qualité du lavage est effectué sur les véhicules lavés et l'information est inscrite dans un registre. (P-20 pts) | X86: Q43. Le contrôle visuel doit être fait par une personne autre que celle qui a lavé la remorque. L'information doit être inscrite dans un registre disponible sur place lors de la visite. Pour répondre « oui », il faut que plus de 25 % des remorques soient contrôlées par semaine. Pour répondre « partiel », il faut que plus de 10 % des remorques soient contrôlées par semaine. L'absence de registre entraîne automatiquement une réponse « non ».
A87: 127 | B87: 4 | C87: 20 | D87: 10 | E87: P | G87: 2.38961039 | H87: 0 | I87: 0 | J87: 0 | K87: 20 | N87: Q44. Des tests sont effectués régulièrement pour vérifier la propreté ou l'innocuité (PCR pour la DEP, gélose, autre) des véhicules de transport et de la station de lavage. (P-20 pts) | X87: Q44. Pour répondre « oui », les transporteurs ayant plus de 2 remorques doivent vérifier leurs stations de lavage minimalement une fois par mois. Il faut avoir accès au dernier résultat sur place pour valider la fréquence des vérifications.
A88: 1997 | B88: 20 | D88: 0 | G88: 0.1688311688 | H88: Titre | I88: 0 | J88: 0 | K88: 0 | N88: Source d'eau | R88: S. o. | S88: Oui | T88: Part. | U88: Non | X88: Source d'eau
A89: 662 | B89: 4 | C89: 100 | D89: 50 | E89: I | F89: 1 | G89: 0.8961038961 | H89: 0 | I89: 0 | J89: 0 | K89: 100 | M89: 1 | N89: Q45. L'eau n'est pas recyclée à cette station de lavage. (I-100 pts) | X89: Q45. Pour répondre « oui », l'eau doit provenir d'un puits ou de l'aqueduc et aucun recyclage d'eau ne doit être fait à la station de lavage.

Sheet RAPPORT
A1: NoQ | B1: MEP | C1: Definition | H1: DATA | I1: Code VBA | J1: Copie
A2: 1 | B2: 1 | I2: 0 | J2: 0
A3: 2 | B3: 1 | I3: 1 | J3: 0
A4: 3 | B4: 1 | I4: =ROW(I13) -> 13 | J4: =ROW(J13) -> 13
A5: 4 | B5: 1 | I5: =ROW(I14) -> 14 | J5: =ROW(J14) -> 14
A6: 5 | B6: 1 | I6: =ROW(I56)+17 -> 73 | J6: =ROW(J56)+17 -> 73
A7: 6 | B7: 1 | I7: =ROW(I56)+17 -> 73 | J7: =ROW(J56)+17 -> 73
A8: 7 | B8: 1
A9: 8 | B9: 1 | I9: $W:$W | J9: $W:$W
A10: 9 | B10: 1 | I10: =CONCATENATE("$M$",I5,":$V$",I6) -> $M$14:$V$73
A11: 10 | B11: 1 | I11: http://biosec.ca/BIOSECTRSP/imagine.png
A12: 11 | B12: 1 | I12: http://biosec.ca/BIOSECTRSP/BMTRSP.png
A13: 12 | B13: 1 | I13: M14:V73 | J13: M14:V73
A14: 13 | B14: 1 | I14: =ROW(I56)+5 -> 61 | J14: =ROW(J56)+5 -> 61
A15: 14 | B15: 42 | I15: 1 | N15: Coordonnées et description du lieu
A16: 15 | B16: 14
A17: 16 | B17: 27 | I17: http://biosec.ca/BIOSECTRSP/CENTILETRSP.csv | N17: Identification du lieu | O17: =CONCATENATE(QUESTIONS!O23," NIL",QUESTIONS!H29) -> NIL0 | R17: =IF(I18=1,"OR",IF(I18=2,"ARGENT","BRONZE")) -> BRONZE
A18: 17 | B18: 27 | H18: =QUESTIONS!H16 -> 0 | I18: =IF(T33<0.5,3,IF(AND(T33>0.75,H18=1),1,2)) -> 3 | J18: =IF(I18=1,"OR",IF(I18=2,"ARGENT","BRONZE")) -> BRONZE | N18: Nom du responsable | O18: =QUESTIONS!O24 -> 0
A19: 18 | B19: 28 | N19: Date de l'évaluation | O19: =QUESTIONS!O25 -> 2019-05-24
A20: 19 | B20: 27 | H20: =IF(QUESTIONS!O26="","",QUESTIONS!O26) ->  | N20: Consultant (option) | O20: =H20 -> 
A21: 20 | B21: 27 | H21: =IF(QUESTIONS!O27="","",QUESTIONS!O27) ->  | N21: Adresse | O21: =H21 -> 
A22: 21 | B22: 27 | N22: Nom de l'auditeur | O22: =QUESTIONS!O28 -> Zenoma Tesselata
A23: 22 | B23: 14
A24: 23 | B24: 42 | N24: Résultat de l'audit en biosécurité
A25: 24 | B25: 14
A26: 25 | B26: 44 | N26: Composantes | P26: Facteur de risque | R26: Points | T26: %
A27: 26 | B27: 45 | N27: Installations et équipements | P27: =QUESTIONS!I24 -> 15 | R27: =CONCATENATE(ROUND(QUESTIONS!I25,0),"/",ROUND(QUESTIONS!I26,0)) -> 0/860 | T27: =QUESTIONS!I27 -> 0
A28: 27 | B28: 46 | N28: Procédures et protocoles | P28: =QUESTIONS!J24 -> 30 | R28: =CONCATENATE(ROUND(QUESTIONS!J25,0),"/",QUESTIONS!J26) -> 0/1620 | T28: =QUESTIONS!J27 -> 0
A29: 28 | B29: 47 | N29: Total | P29: =SUM(P27:P28) -> 45 | R29: =CONCATENATE(ROUND(QUESTIONS!K25,0),"/",QUESTIONS!K26) -> 0/2480 | T29: =QUESTIONS!K27 -> 0
A30: 29 | B30: 14
A31: 30 | B31: 44 | N31: Conformité aux recommandations des experts
A32: 31 | B32: 53 | N32: Pointage global (moyenne des facteurs de risques) | T32: =T29 -> 0
A33: 32 | B33: 54 | N33: Pointage moyen (moyenne des deux composantes) | T33: =AVERAGE(T27:U28) -> 0
A34: 33 | B34: 14
A35: 34 | B35: 42 | N35: =CONCATENATE("Statistiques comparatives (références",CENTILE!C112,")") -> Statistiques comparatives (références 2017-08-30)
A36: 35 | B36: 14 | H36: 1
A37: 36 | B37: 44 | H37: 0 | N37: Statistiques sur les participants | R37: Nombre | T37: %
A38: 37 | B38: 53 | H38: 0 | I38: =IF($T$33>0.75,1,0) -> 0 | N38: Lieux dans la zone OR (pointage moyen supérieur à 75 %) | R38: =CENTILE!C107+I38 -> 36 | T38: =R38/R$41 -> 0.6 | U38: 0.25
A39: 38 | B39: 53 | H39: 2 | I39: =IF(I38+I40>=1,0,1) -> 0 | N39: Lieux dans la zone ARGENT (pointage moyen entre 50 et 75 % ) | R39: =CENTILE!C108+I39 -> 22 | T39: =R39/R$41 -> 0.3666666667 | U39: 0.25
A40: 39 | B40: 54 | H40: 2 | I40: =IF($T$33<0.5,1,0) -> 1 | N40: Lieux dans la zone BRONZE (pointage moyen inférieur à 50 %) | R40: =CENTILE!C109+I40 -> 2 | T40: =R40/R$41 -> 0.03333333333 | U40: 0.25
A41: 40 | B41: 47 | H41: 2 | N41: Total | R41: =SUM(R38:S40) -> 60 | T41: =R41/R$41 -> 1 | U41: 0.25
A42: 41 | B42: 14 | H42: 0
A43: 42 | B43: 44 | H43: 2 | N43: Position du lieu (le no 1 est le meilleur) | R43: Rang | T43: Rang (%)
A44: 43 | B44: 53 | H44: 0 | N44: Installations et équipements | R44: =CONCATENATE(VLOOKUP(ROUND($T27,2),CENTILE!$A:$F,3,FALSE),"/",CENTILE!$C$110+1) -> 60/60 | T44: =VLOOKUP(ROUND($T27,2),CENTILE!$A:$F,3,FALSE)/(CENTILE!$C$110+1) -> 1
A45: 44 | B45: 53 | H45: 0 | N45: Procédures et protocoles | R45: =CONCATENATE(VLOOKUP(ROUND($T28,2),CENTILE!$A:$F,4,FALSE),"/",CENTILE!$C$110+1) -> 60/60 | T45: =VLOOKUP(ROUND($T28,2),CENTILE!$A:$F,4,FALSE)/(CENTILE!$C$110+1) -> 1
A46: 45 | B46: 54 | H46: 3 | N46: Pointage moyen (moyenne des deux composantes) | R46: =CONCATENATE(VLOOKUP(ROUND($T33,2),CENTILE!$A:$F,6,FALSE),"/",CENTILE!$C$110+1) -> 60/60 | T46: =VLOOKUP(ROUND($T33,2),CENTILE!$A:$F,6,0)/(CENTILE!$C$110+1) -> 1
A47: 46 | B47: 1 | H47: 2
A48: 47 | B48: 1 | H48: 1
A49: 48 | B49: 1 | H49: 2
A50: 49 | B50: 1 | H50: 0
A51: 50 | B51: 1 | H51: 2
A52: 51 | B52: 1 | H52: 0
A53: 52 | B53: 1 | H53: 2
A54: 53 | B54: 1
A55: 54 | B55: 1 | H55: 2
A56: 55 | B56: 1 | H56: 0
A57: 56 | B57: 1 | H57: 2
A58: 57 | B58: 42 | H58: 5 | N58: =CONCATENATE("L'audit a permis d'identifier ",H58, " mesures qui ne sont pas totalement conformes") -> L'audit a permis d'identifier 5 mesures qui ne sont pas totalement conformes
A59: 58 | B59: 42 | H59: 5 | N59: =CONCATENATE("Liste des ", H59, " mesures jugées les plus importantes pour améliorer la biosécurité") -> Liste des 5 mesures jugées les plus importantes pour améliorer la biosécurité
A60: 59 | B60: 1

Sheet CENTILE (hidden)
A1: pct | B1: pct | C1: RangI | D1: RangP | E1: RangT | F1: RangM | J1: Ligne | K1: NmVariable | L1: ValeurO | M1: ValeurF | N1: Lebon | O1: LeMoinsBon | P1: Simul
A2: 0 | B2: =B3 -> 1 | C2: =C3 -> 60 | D2: =D3 -> 60 | E2: =E3 -> 60 | F2: =F3 -> 60 | J2: 2 | K2: =GESTION!A2 -> QIDCDPQO | L2: =GESTION!H2 -> 20190524-NIL0-AucunLieuXXXXXXXXXXX | M2: Aucun | N2: 20170829-NIL34568-Q1234567-AucunLieu | O2: 20170829-NIL34568-Q1234567-AucunLieu
A3: =B3/100 -> 0.01 | B3: 1 | C3: 60 | D3: 60 | E3: 60 | F3: 60 | J3: 3 | K3: =GESTION!A3 -> QIDCDPQF | L3: =GESTION!H3 -> 20190524-0-AucuneMRC | M3: =L3 -> 20190524-0-AucuneMRC | N3: 20170829-Q1234567-AucuneMRC | O3: 20170829-Q1234567-AucuneMRC
A4: =B4/100 -> 0.02 | B4: 2 | C4: 60 | D4: 60 | E4: 60 | F4: 60 | J4: 4 | K4: =GESTION!A4 -> IdAudit | L4: =GESTION!H4 -> ZENOTESS | M4: =L4 -> ZENOTESS | N4: ZENOTESS | O4: ZENOTESS
A5: 0.03 | B5: 3 | C5: 60 | D5: 60 | E5: 60 | F5: 60 | J5: 5 | K5: =GESTION!A5 -> PrenomAudit | L5: =GESTION!H5 -> Zenoma | M5: Zenoma | N5: Zenoma | O5: Zenoma
A6: 0.04 | B6: 4 | C6: 60 | D6: 60 | E6: 60 | F6: 60 | J6: 6 | K6: =GESTION!A6 -> NomAudit | L6: =GESTION!H6 -> Tesselata | M6: Tesselata | N6: Tesselata | O6: Tesselata
A7: 0.05 | B7: 5 | C7: 60 | D7: 60 | E7: 60 | F7: 60 | J7: 7 | K7: =GESTION!A7 -> CourrielAudit | L7: =GESTION!H7 -> zenona@gmail.ca | M7: zenona@gmail.ca | N7: zenona@gmail.ca | O7: zenona@gmail.ca
A8: 0.06 | B8: 6 | C8: 60 | D8: 60 | E8: 60 | F8: 60 | J8: 8 | K8: =GESTION!A8 -> CourrielClient | L8: =GESTION!H8 -> 0 | M8: Aucun | N8: Aucun | O8: Aucun
A9: 0.07 | B9: 7 | C9: 60 | D9: 60 | E9: 60 | F9: 60 | J9: 9 | K9: =GESTION!A9 -> EnvoiAudit | L9: =GESTION!H9 -> TRUE | M9: Aucun | N9: 1 | O9: 1
A10: 0.08 | B10: 8 | C10: 60 | D10: 60 | E10: 60 | F10: 60 | J10: 10 | K10: =GESTION!A10 -> EnvoiClient | L10: =GESTION!H10 -> TRUE | M10: Aucun | N10: 1 | O10: 1
A11: 0.09 | B11: 9 | C11: 60 | D11: 60 | E11: 60 | F11: 60 | J11: 11 | K11: =GESTION!A11 -> NmQuestAudit | L11: =GESTION!H11 -> 0 | M11: 0 | N11: Q1234567 | O11: Q1234567
A12: 0.1 | B12: 10 | C12: 60 | D12: 60 | E12: 60 | F12: 60 | J12: 12 | K12: =GESTION!A12 -> CodeValida | L12: =GESTION!H12 -> 0 | M12: Aucun | N12: 1234 | O12: 1234
A13: 0.11 | B13: 11 | C13: 60 | D13: 60 | E13: 60 | F13: 60 | I13: 1 | J13: 13 | K13: =GESTION!A13 -> MRC | L13: =GESTION!H13 -> AucuneMRC | M13: AucuneMRC | N13: AucuneMRC | O13: AucuneMRC
A14: 0.12 | B14: 12 | C14: 60 | D14: 60 | E14: 60 | F14: 60 | J14: 14 | K14: =GESTION!A14 -> GEST13 | L14: =GESTION!H14 -> 0 | M14: 0 | N14: 0 | O14: 0
A15: 0.13 | B15: 13 | C15: 60 | D15: 60 | E15: 60 | F15: 60 | J15: 15 | K15: =GESTION!A15 -> GEST14 | L15: =GESTION!H15 -> 0 | M15: 0 | N15: 0 | O15: 0
A16: 0.14 | B16: 14 | C16: 60 | D16: 60 | E16: 60 | F16: 60 | J16: 16 | K16: =GESTION!A16 -> GEST15 | L16: =GESTION!H16 -> 0 | M16: 0 | N16: 0 | O16: 0
A17: 0.15 | B17: 15 | C17: 60 | D17: 60 | E17: 60 | F17: 60 | J17: 17 | K17: =GESTION!A17 -> GEST16 | L17: =GESTION!H17 -> 0 | M17: 0 | N17: 0 | O17: 0
A18: 0.16 | B18: 16 | C18: 60 | D18: 60 | E18: 60 | F18: 60 | J18: 18 | K18: =GESTION!A18 -> GEST17 | L18: =GESTION!H18 -> 0 | M18: 0 | N18: 0 | O18: 0
A19: 0.17 | B19: 17 | C19: 60 | D19: 60 | E19: 60 | F19: 60 | J19: 19 | K19: =GESTION!A19 -> GEST18 | L19: =GESTION!H19 -> 0 | M19: 0 | N19: 0 | O19: 0
A20: 0.18 | B20: 18 | C20: 60 | D20: 60 | E20: 60 | F20: 60 | J20: 20 | K20: =GESTION!A20 -> GEST19 | L20: =GESTION!H20 -> 0 | M20: 0 | N20: 0 | O20: 0
A21: 0.19 | B21: 19 | C21: 60 | D21: 60 | E21: 60 | F21: 60 | J21: 21 | K21: =GESTION!A21 -> GEST20 | L21: =GESTION!H21 -> 0 | M21: 0 | N21: 0 | O21: 0
A22: 0.2 | B22: 20 | C22: 60 | D22: 60 | E22: 60 | F22: 60 | J22: 2 | K22: =QUESTIONS!A2 -> NbQuInst | L22: =QUESTIONS!H2 -> 15 | M22: 15 | N22: 15 | O22: 15
A23: 0.21 | B23: 21 | C23: 60 | D23: 60 | E23: 60 | F23: 60 | J23: 3 | K23: =QUESTIONS!A3 -> PtQInstA | L23: =QUESTIONS!H3 -> 0 | M23: 0 | N23: 805 | O23: 264
A24: 0.22 | B24: 22 | C24: 60 | D24: 60 | E24: 60 | F24: 60 | J24: 4 | K24: =QUESTIONS!A4 -> PtQInstT | L24: =QUESTIONS!H4 -> 860 | M24: 860 | N24: 860 | O24: 860
A25: 0.23 | B25: 23 | C25: 60 | D25: 60 | E25: 60 | F25: 60 | J25: 5 | K25: =QUESTIONS!A5 -> NbQuProc | L25: =QUESTIONS!H5 -> 30 | M25: 30 | N25: 29 | O25: 30
A26: 0.24 | B26: 24 | C26: 60 | D26: 60 | E26: 60 | F26: 60 | J26: 6 | K26: =QUESTIONS!A6 -> PtQProcA | L26: =QUESTIONS!H6 -> 0 | M26: 0 | N26: 1495 | O26: 317
A27: 0.25 | B27: 25 | C27: 60 | D27: 60 | E27: 60 | F27: 60 | J27: 7 | K27: =QUESTIONS!A7 -> PtQProcT | L27: =QUESTIONS!H7 -> 1620 | M27: 1620 | N27: 1570 | O27: 1620
A28: 0.26 | B28: 26 | C28: 60 | D28: 59 | E28: 60 | F28: 60 | J28: 8 | K28: =QUESTIONS!A8 -> NbQuTout | L28: =QUESTIONS!H8 -> 45 | M28: 45 | N28: 44 | O28: 45
A29: 0.27 | B29: 27 | C29: 60 | D29: 59 | E29: 60 | F29: 60 | J29: 9 | K29: =QUESTIONS!A9 -> PtQToutA | L29: =QUESTIONS!H9 -> 0 | M29: 0 | N29: 2300 | O29: 581
A30: 0.28 | B30: 28 | C30: 60 | D30: 59 | E30: 60 | F30: 60 | J30: 10 | K30: =QUESTIONS!A10 -> PtQToutT | L30: =QUESTIONS!H10 -> 2480 | M30: 2480 | N30: 2430 | O30: 2480
A31: 0.29 | B31: 29 | C31: 60 | D31: 59 | E31: 60 | F31: 60 | J31: 11 | K31: =QUESTIONS!A11 -> NbQuesSO | L31: =QUESTIONS!H11 -> 0 | M31: 0 | N31: 1 | O31: 0
A32: 0.3 | B32: 30 | C32: 60 | D32: 59 | E32: 60 | F32: 60 | J32: 12 | K32: =QUESTIONS!A12 -> NbQRepon | L32: =QUESTIONS!H12 -> 0 | M32: 0 | N32: 45 | O32: 45
A33: 0.31 | B33: 31 | C33: 60 | D33: 59 | E33: 60 | F33: 60 | J33: 13 | K33: =QUESTIONS!A13 -> NbQueTot | L33: =QUESTIONS!H13 -> 45 | M33: 45 | N33: 45 | O33: 45
A34: 0.32 | B34: 32 | C34: 60 | D34: 59 | E34: 60 | F34: 60 | J34: 14 | K34: =QUESTIONS!A14 -> RotaCont | L34: =QUESTIONS!H14 -> 0 | M34: 0 | N34: 0 | O34: 0
A35: 0.33 | B35: 33 | C35: 60 | D35: 59 | E35: 60 | F35: 60 | J35: 15 | K35: =QUESTIONS!A15 -> Type | L35: =QUESTIONS!H15 ->  | N35: TRSLPR | O35: TRSLPR
A36: 0.34 | B36: 34 | C36: 60 | D36: 59 | E36: 60 | F36: 60 | J36: 16 | K36: =QUESTIONS!A16 -> IndicOR | L36: =QUESTIONS!H16 -> 0 | M36: 0 | N36: 1 | O36: 0.1
A37: 0.35 | B37: 35 | C37: 60 | D37: 59 | E37: 60 | F37: 60 | J37: 17 | K37: =QUESTIONS!A17 -> QUEST17 | L37: =QUESTIONS!H17 -> 0 | M37: 0 | N37: 0 | O37: 0
A38: 0.36 | B38: 36 | C38: 60 | D38: 59 | E38: 60 | F38: 60 | J38: 18 | K38: =QUESTIONS!A18 -> QUEST18 | L38: =QUESTIONS!H18 -> 0 | M38: 0 | N38: 0 | O38: 0
A39: 0.37 | B39: 37 | C39: 60 | D39: 59 | E39: 60 | F39: 60 | J39: 19 | K39: =QUESTIONS!A19 -> QUEST19 | L39: =QUESTIONS!H19 -> 0 | M39: 0 | N39: 0 | O39: 0
A40: 0.38 | B40: 38 | C40: 60 | D40: 59 | E40: 60 | F40: 60 | J40: 20 | K40: =QUESTIONS!A20 -> QUEST20 | L40: =QUESTIONS!H20 -> 0 | M40: 0 | N40: 0 | O40: 0
A41: 0.39 | B41: 39 | C41: 60 | D41: 59 | E41: 60 | F41: 60 | J41: 21 | K41: =QUESTIONS!A21 -> QUEST21 | L41: =QUESTIONS!H21 -> 0 | M41: 0 | N41: 0 | O41: 0
A42: 0.4 | B42: 40 | C42: 60 | D42: 59 | E42: 60 | F42: 60 | J42: 22 | K42: =QUESTIONS!A22 -> CodCTPTV | L42: =QUESTIONS!H22 -> 0 | M42: Aucun | N42: 0 | O42: 0
A43: 0.41 | B43: 41 | C43: 60 | D43: 59 | E43: 60 | F43: 60 | J43: 23 | K43: =QUESTIONS!A23 -> IdLieuNM | L43: =QUESTIONS!H23 -> INCONNU | M43: Aucun | N43: Ferme LeBon | O43: Ferme LeMoinsBon
A44: 0.42 | B44: 42 | C44: 60 | D44: 59 | E44: 60 | F44: 60 | J44: 24 | K44: =QUESTIONS!A24 -> NmReLieu | L44: =QUESTIONS!H24 -> INCONNU | M44: INCONNU | N44: Jean Lebon | O44: Jean LeMoinsBon
A45: 0.43 | B45: 43 | C45: 59 | D45: 59 | E45: 60 | F45: 60 | J45: 25 | K45: =QUESTIONS!A25 -> DateEval | L45: =QUESTIONS!H25 -> 43609 | M45: 43609 | N45: 42976 | O45: 42976
A46: 0.44 | B46: 44 | C46: 59 | D46: 59 | E46: 60 | F46: 60 | J46: 26 | K46: =QUESTIONS!A26 -> NmVeteri | L46: =QUESTIONS!H26 -> Dr Inconnu | M46: Aucun | N46: Jules Le Vet | O46: Jules Le Vet
A47: 0.45 | B47: 45 | C47: 58 | D47: 57 | E47: 60 | F47: 60 | J47: 27 | K47: =QUESTIONS!A27 -> AdreLieu | L47: =QUESTIONS!H27 -> Adresse inconnue | M47: Adresse inconnue | N47: 533, La Belle Rue, Saint-Zéphirin | O47: 533, La Belle Rue, Saint-Zéphirin
A48: 0.46 | B48: 46 | C48: 58 | D48: 57 | E48: 60 | F48: 60 | J48: 28 | K48: =QUESTIONS!A28 -> NomAudit | L48: =QUESTIONS!H28 -> Zenoma Tesselata | M48: Aucun | N48: Zenoma Tesselata | O48: Zenoma Tesselata
A49: 0.47 | B49: 47 | C49: 58 | D49: 57 | E49: 60 | F49: 59 | J49: 29 | K49: =QUESTIONS!A29 -> NIL | L49: =QUESTIONS!H29 -> 0 | M49: 0 | N49: 34568 | O49: 34568
A50: 0.48 | B50: 48 | C50: 58 | D50: 57 | E50: 58 | F50: 59 | J50: 30 | K50: =QUESTIONS!A30 -> CodeTR | L50: =QUESTIONS!H30 -> FALSE | M50: FALSE | N50: 1 | O50: 1
A51: 0.49 | B51: 49 | C51: 58 | D51: 56 | E51: 58 | F51: 59 | J51: 31 | K51: =QUESTIONS!A31 -> CodeSL | L51: =QUESTIONS!H31 -> FALSE | M51: FALSE | N51: 1 | O51: 1
A52: 0.5 | B52: 50 | C52: 58 | D52: 56 | E52: 58 | F52: 59 | J52: 32 | K52: =QUESTIONS!A32 -> QUEST32 | L52: =QUESTIONS!H32 -> FALSE | M52: FALSE | N52: 0 | O52: 0
A53: 0.51 | B53: 51 | C53: 58 | D53: 55 | E53: 58 | F53: 59 | J53: 33 | K53: =QUESTIONS!A33 -> QUEST33 | L53: =QUESTIONS!H33 -> FALSE | M53: FALSE | N53: 0 | O53: 0
A54: 0.52 | B54: 52 | C54: 58 | D54: 55 | E54: 57 | F54: 59 | J54: 34 | K54: =QUESTIONS!A34 -> QUEST34 | L54: =QUESTIONS!H34 -> 0 | N54: 0 | O54: 0
A55: 0.53 | B55: 53 | C55: 58 | D55: 55 | E55: 57 | F55: 58 | J55: 35 | K55: =QUESTIONS!A35 -> 1954 | L55: =QUESTIONS!H35 -> Titre | N55: Titre | O55: Titre
A56: 0.54 | B56: 54 | C56: 58 | D56: 55 | E56: 57 | F56: 58 | J56: 36 | K56: =QUESTIONS!A36 -> 11 | L56: =QUESTIONS!H36 -> 0 | N56: 1 | O56: 4
A57: 0.55 | B57: 55 | C57: 58 | D57: 54 | E57: 57 | F57: 56 | J57: 37 | K57: =QUESTIONS!A37 -> 462 | L57: =QUESTIONS!H37 -> 0 | N57: 2 | O57: 2
A58: 0.56 | B58: 56 | C58: 57 | D58: 54 | E58: 57 | F58: 56 | J58: 38 | K58: =QUESTIONS!A38 -> 592 | L58: =QUESTIONS!H38 -> 0 | N58: 2 | O58: 4
A59: 0.57 | B59: 57 | C59: 57 | D59: 52 | E59: 56 | F59: 56 | J59: 39 | K59: =QUESTIONS!A39 -> 1959 | L59: =QUESTIONS!H39 -> Titre | N59: Titre | O59: Titre
A60: 0.58 | B60: 58 | C60: 56 | D60: 52 | E60: 53 | F60: 55 | J60: 40 | K60: =QUESTIONS!A40 -> 441 | L60: =QUESTIONS!H40 -> 0 | N60: 2 | O60: 2
A61: 0.59 | B61: 59 | C61: 56 | D61: 50 | E61: 53 | F61: 55 | J61: 41 | K61: =QUESTIONS!A41 -> 814 | L61: =QUESTIONS!H41 -> 0 | N61: 2 | O61: 4
A62: 0.6 | B62: 60 | C62: 56 | D62: 50 | E62: 52 | F62: 55 | J62: 42 | K62: =QUESTIONS!A42 -> 812 | L62: =QUESTIONS!H42 -> 0 | N62: 2 | O62: 4
A63: 0.61 | B63: 61 | C63: 54 | D63: 49 | E63: 52 | F63: 54 | J63: 43 | K63: =QUESTIONS!A43 -> 806 | L63: =QUESTIONS!H43 -> 0 | N63: 2 | O63: 4
A64: 0.62 | B64: 62 | C64: 53 | D64: 49 | E64: 52 | F64: 54 | J64: 44 | K64: =QUESTIONS!A44 -> 447 | L64: =QUESTIONS!H44 -> 0 | N64: 2 | O64: 4
A65: 0.63 | B65: 63 | C65: 53 | D65: 48 | E65: 51 | F65: 53 | J65: 45 | K65: =QUESTIONS!A45 -> 807 | L65: =QUESTIONS!H45 -> 0 | N65: 2 | O65: 4
A66: 0.64 | B66: 64 | C66: 53 | D66: 47 | E66: 51 | F66: 53 | J66: 46 | K66: =QUESTIONS!A46 -> 160 | L66: =QUESTIONS!H46 -> 0 | N66: 2 | O66: 3
A67: 0.65 | B67: 65 | C67: 53 | D67: 46 | E67: 50 | F67: 51 | J67: 47 | K67: =QUESTIONS!A47 -> 158 | L67: =QUESTIONS!H47 -> 0 | N67: 2 | O67: 3
A68: =B68/100 -> 0.66 | B68: 66 | C68: 52 | D68: 45 | E68: 48 | F68: 50 | J68: 48 | K68: =QUESTIONS!A48 -> 431 | L68: =QUESTIONS!H48 -> 0 | N68: 2 | O68: 4
A69: 0.67 | B69: 67 | C69: 51 | D69: 45 | E69: 46 | F69: 49 | J69: 49 | K69: =QUESTIONS!A49 -> 796 | L69: =QUESTIONS!H49 -> 0 | N69: 3 | O69: 3
A70: 0.68 | B70: 68 | C70: 51 | D70: 43 | E70: 45 | F70: 47 | J70: 50 | K70: =QUESTIONS!A50 -> 473 | L70: =QUESTIONS!H50 -> 0 | N70: 2 | O70: 4
A71: 0.69 | B71: 69 | C71: 49 | D71: 42 | E71: 45 | F71: 46 | J71: 51 | K71: =QUESTIONS!A51 -> 196 | L71: =QUESTIONS!H51 -> 0 | N71: 3 | O71: 3
A72: 0.7 | B72: 70 | C72: 49 | D72: 41 | E72: 45 | F72: 45 | J72: 52 | K72: =QUESTIONS!A52 -> 81 | L72: =QUESTIONS!H52 -> 0 | N72: 2 | O72: 4
A73: 0.71 | B73: 71 | C73: 46 | D73: 40 | E73: 43 | F73: 43 | J73: 53 | K73: =QUESTIONS!A53 -> 516 | L73: =QUESTIONS!H53 -> 0 | N73: 2 | O73: 4
A74: 0.72 | B74: 72 | C74: 46 | D74: 36 | E74: 40 | F74: 42 | J74: 54 | K74: =QUESTIONS!A54 -> 1965 | L74: =QUESTIONS!H54 -> Titre | N74: Titre | O74: Titre
A75: 0.73 | B75: 73 | C75: 46 | D75: 33 | E75: 40 | F75: 41 | J75: 55 | K75: =QUESTIONS!A55 -> 287 | L75: =QUESTIONS!H55 -> 0 | N75: 3 | O75: 3
A76: 0.74 | B76: 74 | C76: 46 | D76: 32 | E76: 38 | F76: 39 | J76: 56 | K76: =QUESTIONS!A56 -> 207 | L76: =QUESTIONS!H56 -> 0 | N76: 2 | O76: 4
A77: 0.75 | B77: 75 | C77: 45 | D77: 32 | E77: 36 | F77: 37 | J77: 57 | K77: =QUESTIONS!A57 -> 107 | L77: =QUESTIONS!H57 -> 0 | N77: 2 | O77: 4
A78: 0.76 | B78: 76 | C78: 44 | D78: 32 | E78: 35 | F78: 36 | J78: 58 | K78: =QUESTIONS!A58 -> 101 | L78: =QUESTIONS!H58 -> 0 | N78: 2 | O78: 4
A79: 0.77 | B79: 77 | C79: 44 | D79: 30 | E79: 35 | F79: 35 | J79: 59 | K79: =QUESTIONS!A59 -> 111 | L79: =QUESTIONS!H59 -> 0 | N79: 3 | O79: 3
A80: 0.78 | B80: 78 | C80: 43 | D80: 28 | E80: 32 | F80: 34 | J80: 60 | K80: =QUESTIONS!A60 -> 1968 | L80: =QUESTIONS!H60 -> Titre | N80: Titre | O80: Titre
A81: 0.79 | B81: 79 | C81: 40 | D81: 27 | E81: 30 | F81: 33 | J81: 61 | K81: =QUESTIONS!A61 -> 621 | L81: =QUESTIONS!H61 -> 0 | N81: 2 | O81: 3
A82: 0.8 | B82: 80 | C82: 38 | D82: 25 | E82: 27 | F82: 31 | J82: 62 | K82: =QUESTIONS!A62 -> 622 | L82: =QUESTIONS!H62 -> 0 | N82: 2 | O82: 4
A83: 0.81 | B83: 81 | C83: 36 | D83: 23 | E83: 27 | F83: 31 | J83: 63 | K83: =QUESTIONS!A63 -> 168 | L83: =QUESTIONS!H63 -> 0 | N83: 2 | O83: 4
A84: 0.82 | B84: 82 | C84: 34 | D84: 23 | E84: 25 | F84: 28 | J84: 64 | K84: =QUESTIONS!A64 -> 186 | L84: =QUESTIONS!H64 -> 0 | N84: 2 | O84: 2
A85: 0.83 | B85: 83 | C85: 32 | D85: 22 | E85: 23 | F85: 24 | J85: 65 | K85: =QUESTIONS!A65 -> 833 | L85: =QUESTIONS!H65 -> 0 | N85: 2 | O85: 4
A86: 0.84 | B86: 84 | C86: 30 | D86: 21 | E86: 21 | F86: 23 | J86: 66 | K86: =QUESTIONS!A66 -> 1980 | L86: =QUESTIONS!H66 -> Titre | N86: Titre | O86: Titre
A87: 0.85 | B87: 85 | C87: 28 | D87: 19 | E87: 20 | F87: 20 | J87: 67 | K87: =QUESTIONS!A67 -> 596 | L87: =QUESTIONS!H67 -> 0 | N87: 2 | O87: 4
A88: 0.86 | B88: 86 | C88: 26 | D88: 18 | E88: 19 | F88: 18 | J88: 68 | K88: =QUESTIONS!A68 -> 606 | L88: =QUESTIONS!H68 -> 0 | N88: 2 | O88: 4
A89: 0.87 | B89: 87 | C89: 24 | D89: 14 | E89: 15 | F89: 17 | J89: 69 | K89: =QUESTIONS!A69 -> 616 | L89: =QUESTIONS!H69 -> 0 | N89: 2 | O89: 4
A90: 0.88 | B90: 88 | C90: 22 | D90: 10 | E90: 12 | F90: 16 | J90: 70 | K90: =QUESTIONS!A70 -> 1983 | L90: =QUESTIONS!H70 -> Titre | N90: Titre | O90: Titre
A91: 0.89 | B91: 89 | C91: 21 | D91: 9 | E91: 10 | F91: 12 | J91: 71 | K91: =QUESTIONS!A71 -> 131 | L91: =QUESTIONS!H71 -> 0 | N91: 2 | O91: 4
A92: 0.9 | B92: 90 | C92: 19 | D92: 6 | E92: 9 | F92: 9 | J92: 72 | K92: =QUESTIONS!A72 -> 571 | L92: =QUESTIONS!H72 -> 0 | N92: 2 | O92: 4
A93: 0.91 | B93: 91 | C93: 18 | D93: 4 | E93: 6 | F93: 8 | J93: 73 | K93: =QUESTIONS!A73 -> 581 | L93: =QUESTIONS!H73 -> 0 | N93: 2 | O93: 4
A94: 0.92 | B94: 92 | C94: 14 | D94: 4 | E94: 6 | F94: 7 | J94: 74 | K94: =QUESTIONS!A74 -> 137 | L94: =QUESTIONS!H74 -> 0 | N94: 2 | O94: 4
A95: 0.93 | B95: 93 | C95: 10 | D95: 4 | E95: 5 | F95: 5 | J95: 75 | K95: =QUESTIONS!A75 -> 1986 | L95: =QUESTIONS!H75 -> Titre | N95: Titre | O95: Titre
A96: 0.94 | B96: 94 | C96: 9 | D96: 4 | E96: 4 | F96: 4 | J96: 76 | K96: =QUESTIONS!A76 -> 541 | L96: =QUESTIONS!H76 -> 0 | N96: 2 | O96: 4
A97: 0.95 | B97: 95 | C97: 8 | D97: 4 | E97: 2 | F97: 1 | J97: 77 | K97: =QUESTIONS!A77 -> 146 | L97: =QUESTIONS!H77 -> 0 | N97: 3 | O97: 3
A98: 0.96 | B98: 96 | C98: 8 | D98: 3 | E98: 1 | F98: 1 | J98: 78 | K98: =QUESTIONS!A78 -> 1989 | L98: =QUESTIONS!H78 -> Titre | N98: Titre | O98: Titre
A99: 0.97 | B99: 97 | C99: 6 | D99: 2 | E99: 1 | F99: 1 | J99: 79 | K99: =QUESTIONS!A79 -> 681 | L99: =QUESTIONS!H79 -> 0 | N99: 2 | O99: 4
A100: 0.98 | B100: 98 | C100: 6 | D100: 2 | E100: 1 | F100: 1 | J100: 80 | K100: =QUESTIONS!A80 -> 167 | L100: =QUESTIONS!H80 -> 0 | N100: 2 | O100: 3
A101: 0.99 | B101: 99 | C101: 6 | D101: 1 | E101: 1 | F101: 1 | J101: 81 | K101: =QUESTIONS!A81 -> 177 | L101: =QUESTIONS!H81 -> 0 | N101: 2 | O101: 3
A102: 1 | B102: 100 | C102: 1 | D102: 1 | E102: 1 | F102: 1 | J102: 82 | K102: =QUESTIONS!A82 -> 1991 | L102: =QUESTIONS!H82 -> Titre | N102: Titre | O102: Titre
J103: 83 | K103: =QUESTIONS!A83 -> 752 | L103: =QUESTIONS!H83 -> 0 | N103: 2 | O103: 4
J104: 84 | K104: =QUESTIONS!A84 -> 753 | L104: =QUESTIONS!H84 -> 0 | N104: 2 | O104: 4
J105: 85 | K105: =QUESTIONS!A85 -> 696 | L105: =QUESTIONS!H85 -> 0 | N105: 2 | O105: 4
J106: 86 | K106: =QUESTIONS!A86 -> 121 | L106: =QUESTIONS!H86 -> 0 | N106: 2 | O106: 3
B107: OR | C107: 36 | J107: 87 | K107: =QUESTIONS!A87 -> 127 | L107: =QUESTIONS!H87 -> 0 | N107: 2 | O107: 4
B108: ARGENT | C108: 22 | J108: 88 | K108: =QUESTIONS!A88 -> 1997 | L108: =QUESTIONS!H88 -> Titre | N108: Titre | O108: Titre
B109: BRONZE | C109: 1 | J109: 89 | K109: =QUESTIONS!A89 -> 662 | L109: =QUESTIONS!H89 -> 0 | N109: 2 | O109: 4
B110: TOTAL | C110: 59 | J110: FIN | K110: FIN | L110: FIN | M110: FIN | N110: FIN | O110: FIN
B111: Date | C111: 8/30/2017
B112: Date2 | C112: 2017-08-30
